Cogmind - Beta 16.1 @@@ ROGUE MODE // 2026.02.18 @ 05:17:07 Player: Drago Result: Destroyed by H-88 Terminator with Heavy Machine Gun Performance ------------- Evolutions (9) 4500 Regions Visited (30) 6000 Robots Destroyed (187) 935 Value Destroyed (6400) 6400 Prototype IDs (73) 1460 Alien Tech Used (9) 1800 Bonus (7227) 7227 TOTAL SCORE: 28322 Bonus ------- High Alert Combat Kills 517 Follower Combat Kills 3345 Hunted by Unchained 500 Awakened Behemoth Slayer 1000 Network Hubs Disabled 400 Registered with UFD 300 Met Optimus in HQ 500 Met Imprinter 300 Met Warlord at Base 500 MAIN.C Attacked Warlord 500 Built Enhanced Grunts 300 Met R17 at Cetus 500 Friendly Fire -1435 Cogmind --------- Core Integrity 0/1600 Matter 150/300 Energy 99/100 System Corruption 5% Temperature Cool (0) Movement Core (50) Location -1/Access Parts ------- > --- POWER (2) -------- (None) > --- PROPULSION (6) --- (None) > --- UTILITY (12) ----- (None) > --- WEAPON (5) ------- (None) > --- INVENTORY (5) ---- Advanced Sensor Array Enhanced Nova Cannon CR-A16's Behemoth Slayer Peak State ------------ > --- POWER ------------ Micro Antimatter Reactor Meta Core > --- PROPULSION ------- Biomechanical Wings Cooled Nuclear Pulse Thruster Cooled Nuclear Pulse Thruster Cooled Field Propulsion Drive Impulse Thruster Array > --- UTILITY ---------- Machine Analyzer Enhanced Optical Array Advanced Sensor Array Experimental Signal Interpreter Phase Redirector Advanced Point Defense System Improved Hacking Suite Advanced Hacking Suite System Mapper System Guard > --- WEAPON ----------- Helical Railgun Mini Smartbomb Launcher Sigix Broadsword > --- INVENTORY -------- Advanced Surge Thruster Phase Armor Enhanced Force Lance CR-A16's Behemoth Slayer [Rating: 182] Favorites ----------- Power Meta Core Engine Ion Engine Power Core Meta Core Reactor Micro Antimatter Reactor Propulsion Impulse Thruster Array Treads Light Treads Leg Heavy Shield Leg Wheel Wheel Hover Unit Combat Airjet Flight Unit Impulse Thruster Array Utility Machine Analyzer Device Experimental Sensor Array Storage Large Storage Unit Processor Machine Analyzer Hackware Improved Hacking Suite Protection Improved Light Armor Plating Artifact Phase Armor Weapon Ripper Energy Gun Advanced Variable Charge Gun Energy Cannon Subdweller Beam Cannon Ballistic Gun Advanced KE Penetrator Launcher Mini Smartbomb Launcher Special Weapon Mining Laser Impact Weapon Powered Hammer Slashing Weapon Ripper Piercing Weapon Enhanced Force Lance Special Melee Weapon Datajack Build | -11 -10 -10 -8 -8 -6 -6 -6 -6 -6 -6 -5 -5 -5 -5 -5 -5 -5 -5 -4 -4 -4 -4 -4 -4 -3 -3 -3 -3 -2 -1 ------- Run | Yrd Mat Sub Rec Scr Fac Was Fac Low Low Zio Pro Fac Was Fac Ext Cet Arc Hub Fac Was Fac Upp Upp War Pro Res Qua Frg Res Acc Slots Evolved 18 | . . . . . 8 . . . . . . 2 . . . . . . 2 . . . . . . 2 . . 2 2 Power 1 | . . . . . . . . . . . . . . . . . . . . . . . . . . 1 . . . . Propulsion 4 | . . . . . 2 . . . . . . 1 . . . . . . 1 . . . . . . . . . . . Utility 10 | . . . . . 6 . . . . . . 1 . . . . . . . . . . . . . . . . 1 2 Weapon 3 | . . . . . . . . . . . . . . . . . . . 1 . . . . . . 1 . . 1 . Parts Attached 180 | 7 7 11 1 6 30 2 12 2 3 1 . 18 . 3 3 6 3 . 9 . 2 2 1 6 1 10 12 1 13 8 Power 11 | 1 . . . 1 3 . . . . . . . . . . . . . . . . . . . . 2 . . 4 . Engine 2 | 1 . . . . 1 . . . . . . . . . . . . . . . . . . . . . . . . . Core 4 | . . . . 1 2 . . . . . . . . . . . . . . . . . . . . 1 . . . . Reactor 5 | . . . . . . . . . . . . . . . . . . . . . . . . . . 1 . . 4 . Propulsion 44 | 2 . 2 . 3 12 1 3 . 1 . . 4 . 1 . . . . 4 . 1 . 1 . . 2 2 1 2 2 Treads 4 | 1 . 2 . 1 . . . . . . . . . . . . . . . . . . . . . . . . . . Leg 1 | . . . . . . . . . . . . . . . . . . . . . . . . . . . . . 1 . Wheel 3 | 1 . . . 2 . . . . . . . . . . . . . . . . . . . . . . . . . . Hover 5 | . . . . . 5 . . . . . . . . . . . . . . . . . . . . . . . . . Flight 31 | . . . . . 7 1 3 . 1 . . 4 . 1 . . . . 4 . 1 . 1 . . 2 2 1 1 2 Utility 80 | 2 2 1 1 1 12 1 7 . 1 1 . 10 . 1 2 4 3 . 5 . 1 1 . 6 . 1 8 . 4 5 Device 32 | 1 . 1 . 1 2 . . . 1 . . 2 . 1 . 2 . . 4 . 1 . . 4 . 1 5 . 2 4 Storage 3 | 1 1 . . . . . . . . . . . . . 1 . . . . . . . . . . . . . . . Processor 12 | . . . . . 3 . 4 . . . . . . . . . . . 1 . . 1 . 1 . . 1 . 1 . Hackware 20 | . . . . . 5 . 3 . . 1 . 4 . . 1 . 3 . . . . . . 1 . . . . 1 1 Protection 11 | . 1 . 1 . 2 1 . . . . . 4 . . . 2 . . . . . . . . . . . . . . Artifact 2 | . . . . . . . . . . . . . . . . . . . . . . . . . . . 2 . . . Weapon 45 | 2 5 8 . 1 3 . 2 2 1 . . 4 . 1 1 2 . . . . . 1 . . 1 5 2 . 3 1 Energy Gun 4 | 1 . 1 . . . . . . . . . . . . . 1 . . . . . . . . . . . . . 1 Energy Cannon 8 | . . 4 . . . . . . 1 . . 1 . . . . . . . . . . . . . . 1 . 1 . Ballistic Gun 11 | 1 3 2 . . 1 . . . . . . . . . . 1 . . . . . . . . . 1 . . 2 . Ballistic Cannon . | . . . . . . . . . . . . . . . . . . . . . . . . . . . . . . . Launcher 5 | . 1 . . . . . 1 1 . . . 1 . . . . . . . . . . . . . 1 . . . . Special Weapon 1 | . 1 . . . . . . . . . . . . . . . . . . . . . . . . . . . . . Impact Weapon 1 | . . . . . . . 1 . . . . . . . . . . . . . . . . . . . . . . . Slashing Weapon 8 | . . 1 . . 2 . . 1 . . . 1 . 1 . . . . . . . . . . 1 . 1 . . . Piercing Weapon 6 | . . . . . . . . . . . . 1 . . 1 . . . . . . 1 . . . 3 . . . . Special Melee Weapon 1 | . . . . 1 . . . . . . . . . . . . . . . . . . . . . . . . . . Unidentified Prototypes 21 | . . . . . . . 1 . . . . 2 . . . 4 . . 2 . 1 . . 4 . . 6 . 1 . Corrupted Parts 1 | . . . . . . . . . . . . . . . . 1 . . . . . . . . . . . . . . System Corruption 6 | . . . . . . . . . . . . . . . . 6 . . . . . . . . . . . . . . Parts Lost 59 | . 1 . . . 7 . 1 . 1 . . 3 . . 2 3 . 1 1 . . . 2 . . 7 3 7 2 18 Power 6 | . . . . . 1 . . . . . . . . . . . . . . . . . . . . 1 . 2 . 2 Propulsion 14 | . . . . . 3 . 1 . . . . . . . . 1 . . . . . . 1 . . 1 . 2 . 5 Utility 28 | . 1 . . . 2 . . . 1 . . 2 . . 2 2 . 1 . . . . 1 . . 3 2 2 1 8 Weapon 11 | . . . . . 1 . . . . . . 1 . . . . . . 1 . . . . . . 2 1 1 1 3 Highest Loss Streak 14 | . 1 . . . 6 . 1 . 1 . . 1 . . 1 2 . 1 1 . . . 1 . . 2 2 4 2 14 To Critical Strikes 2 | . . . . . . . . . . . . . . . . 1 . . . . . . . . . . . . . 1 Average Backups 7 | 1 12 14 15 13 5 3 4 4 4 4 4 4 5 4 5 5 4 4 3 5 4 5 4 4 5 4 4 4 4 4 Power . | . 1 1 1 . . . . . . . . . . 1 1 1 1 1 1 1 1 1 1 1 1 . . . . . Propulsion 2 | . 3 3 3 3 1 3 2 2 2 2 2 2 2 1 2 1 1 1 1 3 2 3 2 2 2 2 1 . . . Utility 1 | . 2 4 5 6 1 . 1 1 . . . . . . . . . . . . . . . . 1 . . . . . Weapon 1 | . 4 3 2 1 1 . 1 1 2 2 2 1 2 2 2 2 2 2 1 1 1 1 1 1 1 1 1 1 2 2 Tool/Special . | . . . . . . . . . . . . . . . . . . . . . . . . . . . . . . . Unused Backups 26 | . 5 4 1 5 2 1 3 . . 1 . . 1 . 1 1 . . . . . . . . . . 1 . . . Power 4 | . 1 2 . 1 . . . . . . . . . . . . . . . . . . . . . . . . . . Propulsion 7 | . 1 1 . 1 . 1 2 . . . . . 1 . . . . . . . . . . . . . . . . . Utility 9 | . 1 . 1 3 1 . 1 . . . . . . . 1 1 . . . . . . . . . . . . . . Weapon 4 | . 2 1 . . . . . . . 1 . . . . . . . . . . . . . . . . . . . . Tool/Special 2 | . . . . . 1 . . . . . . . . . . . . . . . . . . . . . 1 . . . Average Slot Usage (%) 89 | . 98 99 100 89 83 86 86 92 93 94 94 92 95 93 91 88 92 93 86 90 90 92 90 92 94 82 84 78 60 69 Engine 3 | . 14 14 14 4 1 . . . . . . . . . . . . . . . . . . . . . . . . . Core 3 | . . . . 9 4 5 5 5 5 5 5 5 5 5 5 5 5 5 4 4 4 4 4 4 4 5 4 1 . . Treads 4 | . 14 22 28 5 . . . . . . . . . . . . . . . . . . . . . . . . . . Wheel 2 | . 14 5 . 12 1 . . . . . . . . . . . . . . . . . . . . . . . . . Hover 2 | . . . . . 8 5 5 5 5 5 5 5 5 2 . . . . . . . . . . . . . . . . Flight 12 | . . . . . 6 19 16 16 16 16 16 19 20 20 20 21 21 21 22 23 23 23 20 23 23 21 22 21 15 13 Device 4 | . 8 1 . 5 5 5 5 4 4 5 5 4 5 4 5 8 6 5 4 9 9 9 8 4 4 1 7 7 3 12 Storage 4 | . 14 14 14 14 1 . . . . . . . . . 1 . . . . . . . . . . . . . . . Processor 13 | . . . . . 17 16 20 22 22 22 22 20 20 20 21 21 21 21 19 19 19 19 19 21 23 17 18 15 13 15 Hackware 11 | . . . . . 23 18 17 22 18 16 16 13 15 15 14 10 17 20 14 14 14 14 14 14 14 13 13 13 12 10 Protection 5 | . 4 12 14 8 . 3 3 . 2 5 5 9 10 10 6 4 5 5 4 4 4 4 4 4 4 3 . . . . Energy Cannon 2 | . . 20 . . . . . . . . . 2 5 3 2 1 . . . . . . . . . . . . . . Ballistic Gun 3 | . 26 4 14 2 1 . . . . . . . . . . 2 5 5 4 4 4 4 4 4 3 4 4 4 4 2 Launcher 1 | . . . . . . 3 1 4 5 5 5 1 . 1 2 2 5 5 2 . . . . . . . 3 . . . Slashing Weapon 6 | . . 3 14 14 7 6 4 4 5 5 5 9 10 9 9 6 5 5 4 4 4 4 4 4 4 3 3 3 . . Special Melee Weapon 1 | . . . . 11 1 . . . . . . . . . . . . . . . . . . . . . . . . . Peak Build Rating 182 | 7 10 14 16 25 80 87 97 101 101 100 100 117 109 109 106 116 121 117 135 132 132 137 137 152 148 154 182 169 136 168 Average Rating 81 | 5 9 12 15 22 61 78 93 98 97 99 100 109 109 106 103 109 116 116 126 132 130 134 131 139 147 140 162 148 110 144 On Entrance 96 | . 7 10 14 16 25 79 87 97 99 98 100 100 109 109 105 102 116 117 112 132 132 131 137 129 148 148 130 169 92 134 Avg Prop Armor Cover (%) 4 | 12 10 10 . 9 5 3 4 4 3 3 3 2 2 2 . . . . . . 4 4 4 . . . . . 26 . Naked Turns 4 | . . . . . . . . . . . . . . . . . . . . . . . . . . . . . . 4 Heaviest Build 47 | 14 34 44 39 39 35 18 23 22 24 24 24 28 28 28 32 38 29 27 33 30 30 33 33 31 31 39 43 43 35 47 Greatest Support 54 | 10 10 40 40 40 54 27 28 28 28 28 28 35 31 32 32 33 33 33 40 40 36 33 44 37 44 48 52 52 48 48 Greatest Overweight (x) 4 | 1 3 4 . 3 1 . . . . . . . 2 . . 1 . . . . . . . . . . . . . 2 Average Overweight (x) . | . 2 2 . 1 . . . . . . . . . . . . . . . . . . . . . . . . . . Largest Inventory Capacity 15 | 8 15 15 15 15 15 5 5 5 5 5 5 5 5 5 10 10 5 5 5 5 5 5 5 5 5 5 5 5 5 5 Average Capacity 8 | 7 13 15 15 15 7 5 5 5 5 5 5 5 5 5 6 5 5 5 5 5 5 5 5 5 5 5 5 5 5 5 Most Carried 15 | 4 15 15 15 15 15 5 5 5 5 5 5 5 5 5 9 9 4 4 5 5 5 5 5 5 5 5 5 5 5 5 Average Carried 7 | 1 13 14 14 13 5 4 4 4 4 4 5 4 5 4 5 5 4 4 3 5 4 5 4 4 5 4 4 4 4 4 Final Capacity 15 | 8 15 15 15 15 5 5 5 5 5 5 5 5 5 5 10 5 5 5 5 5 5 5 5 5 5 5 5 5 5 5 Final Carried 15 | 4 15 15 15 15 5 4 5 5 4 5 5 5 5 5 9 4 4 4 5 5 5 5 4 5 5 5 5 3 5 3 Scrap Suit Usage (%) 1 | . . . . . . . . . . . . . . . . . . . . . . . . . . . . . 48 . Parts Cannibalized 3 | . . . . . . . . . . . . . . . . . . . . . . . . . . . . . 3 . Class Distribution -------------------- 54% | Hacker-Scout 29% | Mutant 8% | Hacker-Sprinter Dominant Class ---------------- Mutant | -10/Materials Mutant | -10/Subcaves Mutant | -8/Recycling Mutant | -8/Scraptown Hacker-Scout | -6/Factory Hacker-Scout | -6/Waste Hacker-Scout | -6/Factory Hacker-Scout | -6/Lower Caves Hacker-Scout | -6/Lower Caves Hacker-Scout | -6/Zion Hacker-Scout | -5/Proximity Caves Hacker-Scout | -5/Factory Hacker-Scout | -5/Waste Hacker-Scout | -5/Factory Hacker-Scout | -5/Extension Hacker-Scout | -5/Cetus Hacker-Scout | -5/Archives Hacker-Scout | -5/Hub_04(d) Hacker-Scout | -4/Factory Hacker-Ninja | -4/Waste Hacker-Scout | -4/Factory Hacker-Scout | -4/Upper Caves Hacker-Scout | -4/Upper Caves Hacker-Sprinter | -4/Warlord Hacker-Sprinter | -3/Proximity Caves Hacker-Sprinter | -3/Research Hacker-Scout | -3/Quarantine Hacker-Scout | -3/Protoforge Hacker-Sprinter | -2/Research Hacker-Scout | -1/Access Resources | -11 -10 -10 -8 -8 -6 -6 -6 -6 -6 -6 -5 -5 -5 -5 -5 -5 -5 -5 -4 -4 -4 -4 -4 -4 -3 -3 -3 -3 -2 -1 ----------- Run | Yrd Mat Sub Rec Scr Fac Was Fac Low Low Zio Pro Fac Was Fac Ext Cet Arc Hub Fac Was Fac Upp Upp War Pro Res Qua Frg Res Acc Matter Collected 5252 | 225 609 254 10 40 379 250 363 68 172 20 156 450 20 . 540 167 129 10 . 175 14 30 40 71 54 332 493 . 181 . Remotely . | . . . . . . . . . . . . . . . . . . . . . . . . . . . . . . . Salvage Created 7392 | 104 500 385 . . 435 525 832 62 50 . 304 470 74 290 1399 38 213 . . 138 52 . 252 . . 446 690 . 133 . Parts 366 | 7 44 25 . . 25 2 30 1 4 . 17 26 4 18 56 . 19 . . 6 4 . 13 . . 24 36 . 5 . Haulers Intercepted 13 | . 2 . . . 1 . 6 . . . . 1 . . . . . . . . . . . . . 2 1 . . . Recyclers Shooed 1 | . . . . . . . . . . . . . . 1 . . . . . . . . . . . . . . . . Parts Field Recycled . | . . . . . . . . . . . . . . . . . . . . . . . . . . . . . . . Retrieved Matter . | . . . . . . . . . . . . . . . . . . . . . . . . . . . . . . . Parts Self-Destructed 55 | . . 25 . . . . . . 4 . 15 . . . . . . . . . . . 11 . . . . . . . Prevented 1 | . . . . . . . . 1 . . . . . . . . . . . . . . . . . . . . . . Parts Restored . | . . . . . . . . . . . . . . . . . . . . . . . . . . . . . . . Kills | -11 -10 -10 -8 -8 -6 -6 -6 -6 -6 -6 -5 -5 -5 -5 -5 -5 -5 -5 -4 -4 -4 -4 -4 -4 -3 -3 -3 -3 -2 -1 ------- Run | Yrd Mat Sub Rec Scr Fac Was Fac Low Low Zio Pro Fac Was Fac Ext Cet Arc Hub Fac Was Fac Upp Upp War Pro Res Qua Frg Res Acc Combat Hostiles Destroyed 117 | . 10 10 . . 5 2 8 1 5 . 13 7 . 8 19 . . . . . . . 7 . . 12 8 . 2 . Melee 18 | . . 1 . . 5 . 1 . . . 1 1 . 1 6 . . . . . . . . . . 1 1 . . . Guns 18 | . 4 2 . . . . . . . . . . . . . . . . . . . . 7 . . . 3 . 2 . Cannons 8 | . . 7 . . . . . . . . . . . . 1 . . . . . . . . . . . . . . . AOE 71 | . 6 . . . . 2 7 1 5 . 12 6 . 7 10 . . . . . . . . . . 11 4 . . . Classes Destroyed 18 | 2 5 1 . . 1 2 1 . . . . 2 . 1 2 . . . . . . . . . . . 1 . . . Worker 3 | . . . . . . . . . . . . 1 . . . . . . . . . . . . . . 2 . . . Builder 4 | . . . . . . . 1 . . . . . . . 1 . . . . . 1 . . . . . 1 . . . Tunneler 4 | 2 2 . . . . . . . . . . . . . . . . . . . . . . . . . . . . . Hauler 13 | . 2 . . . 1 . 6 . . . . 1 . . . . . . . . . . . . . 2 1 . . . Recycler 9 | 1 1 . . . 1 . . . . . . 1 . 1 3 . . . . . . . . . . . 1 . . . Operator 14 | . 1 . . . . . 2 . . . . 3 . . 1 . 6 . . . . . . . . . 1 . . . Watcher 15 | . 3 . . . 1 . 2 . . . . 3 . . 3 1 . . . . 1 . . . . . 1 . . . Swarmer 67 | . 6 . . . 3 . 8 . 4 . 8 5 . 7 4 . . . . . . . 7 . . 11 4 . . . Saboteur 1 | . . . . . . . . . . . . . . . 1 . . . . . . . . . . . . . . . Grunt 23 | . 4 . . . 1 . . 1 . . 5 . . . 8 . . . . . . . 1 . . . 1 . 2 . Researcher 2 | . . . . . . . . . . . . . . . . . . . . . . . . . . . 2 . . . Sentry 5 | . . . . . . . . . . . . . . 1 4 . . . . . . . . . . . . . . . Hunter 2 | . . . . . . . . . . . . 1 . . . . . . . . . . . . . 1 . . . . Programmer 6 | . . . . . 1 . . . 1 . . 1 . . . . . . . . . . . . . . 3 . . . Behemoth 2 | . . . . . . . . . . . . . . . 2 . . . . . . . . . . . . . . . Compactor 2 | . . . . . . 2 . . . . . . . . . . . . . . . . . . . . . . . . Subdweller 10 | . . 10 . . . . . . . . . . . . . . . . . . . . . . . . . . . . Wasp 1 | . . . . . . 1 . . . . . . . . . . . . . . . . . . . . . . . . Martyr 4 | . . . . . . 1 . . . . . . 1 . . . . . . 2 . . . . . . . . . . Best Kill Streak 5 | 3 5 3 . . 4 1 4 1 4 . 5 5 . 4 5 1 4 . . . 2 . 4 . . 5 5 . 1 . Combat Bots Only 5 | . 3 3 . . 3 1 4 1 4 . 5 4 . 4 4 . . . . . . . 4 . . 5 4 . 1 . Max Kills in Single Turn 4 | 1 3 2 . . 1 2 3 1 2 . 3 3 1 4 3 1 1 . . 1 1 . 2 . . 3 2 . 1 . Gunslinging 1 | . . . . . . . . . . . . . . . . . . . . . . . 1 . . . . . . . Exploded 4 | . 3 . . . . 1 3 1 2 . 3 2 . 4 2 . . . . . . . . . . 3 2 . . . Melee 1 | . . 1 . . 1 . 1 . . . 1 1 . 1 1 . . . . . . . . . . 1 1 . . . Uniques/NPCs Destroyed . | . . . . . . . . . . . . . . . . . . . . . . . . . . . . . . . Combat | -11 -10 -10 -8 -8 -6 -6 -6 -6 -6 -6 -5 -5 -5 -5 -5 -5 -5 -5 -4 -4 -4 -4 -4 -4 -3 -3 -3 -3 -2 -1 -------- Run | Yrd Mat Sub Rec Scr Fac Was Fac Low Low Zio Pro Fac Was Fac Ext Cet Arc Hub Fac Was Fac Upp Upp War Pro Res Qua Frg Res Acc Hostile Shots Fired 1100 | . 22 37 . . 155 . 12 17 10 42 10 22 . 21 52 11 . 26 34 . . 2 61 . 10 131 59 71 77 218 Missed 543 | . 7 10 . . 59 . 8 7 6 25 4 11 . 11 22 4 . 11 17 . . 2 32 . 5 72 27 37 42 124 Hits 557 | . 15 27 . . 96 . 4 10 4 17 6 11 . 10 30 7 . 15 17 . . . 29 . 5 59 32 34 35 94 Melee 2 | . . . . . . . . . . . . . . . . . . 1 . . . . . . . 1 . . . . Projectile 555 | . 15 27 . . 96 . 4 10 4 17 6 11 . 10 30 7 . 14 17 . . . 29 . 5 58 32 34 35 94 AOE 4 | . . 1 . . . . . . . . . 2 . . . . . . . . . . . . . . . . . 1 Critical Strikes 31 | . 1 1 . . 3 . 1 . . 1 . . . 1 3 1 . . 1 . . . . . . 1 2 . 5 10 Actively Blocked 9 | . . . . . . . . . . . . . . . . . . . . . . . . . . . . . . 9 Part Disruptions 1 | . . . . . . . . . . 1 . . . . . . . . . . . . . . . . . . . . Damage Taken 12271 | . 257 811 . . 1302 27 124 192 102 158 93 443 . 193 759 245 27 379 293 25 . . 462 . 113 1076 711 958 837 2684 Core 3004 | . 25 178 . . 339 . 72 76 14 42 . 45 . 15 129 37 . 48 23 . . . 48 . 16 152 22 53 161 1509 Absorbed by Shields 25 | . . . . . . . . . . . . . . . . 25 . . . . . . . . . . . . . . Ignored by Resistances 59 | . . . . . . . . . . . . . . . . . . . . . . . . . . . . . . 59 Regen/Repaired (Parts) 1686 | . . . . . 12 21 44 . . 17 . 231 . 34 157 . . . . 204 . . . 253 . . 405 145 30 133 Core Remaining (%) 67 | 100 . . . 18 . . . . . . 36 . . . . . . 72 . . . . . . 92 . . 65 88 . Volleys Fired 380 | 5 32 66 . . . 20 15 3 9 . 12 25 7 18 17 23 4 . 15 13 1 . 13 1 . 21 46 1 12 1 Largest 2 | 2 2 2 . . . 1 1 1 1 . 1 1 1 1 1 1 1 . 1 2 1 . 2 1 . 1 1 1 2 1 Hottest 240 | 60 100 160 . . . 30 43 43 36 . 36 98 98 98 98 98 35 . 80 240 35 . 115 240 . 240 80 38 120 65 Shots Fired 456 | 10 60 83 . . . 20 15 3 9 . 12 25 7 18 17 23 4 . 15 23 1 . 24 1 . 21 46 2 15 2 Gun 232 | 10 56 18 . . . . . . . . . . . . . 10 4 . 15 23 1 . 24 1 . 12 40 2 14 2 Cannon 117 | . . 64 . . . . . . . . . 17 7 15 5 8 . . . . . . . . . . . . 1 . Launcher 106 | . 3 1 . . . 20 15 3 9 . 12 8 . 3 12 5 . . . . . . . . . 9 6 . . . Special 1 | . 1 . . . . . . . . . . . . . . . . . . . . . . . . . . . . . Kinetic 176 | 5 56 18 . . . . . . . . . . . . . 10 4 . 3 12 1 . 11 . . . 40 2 14 . Thermal 174 | 5 1 64 . . . . . . . . . 17 7 15 5 8 . . 12 11 . . 13 1 . 12 . . 1 2 Explosive 100 | . 3 1 . . . 20 12 . 9 . 12 8 . 3 12 5 . . . . . . . . . 9 6 . . . Electromagnetic 6 | . . . . . . . 3 3 . . . . . . . . . . . . . . . . . . . . . . Robot Hit Streak 17 | 1 6 10 . . . 4 4 . 2 . 2 1 7 8 14 16 3 . 1 9 1 . 4 . . 7 17 . 4 2 Robot Miss Streak 6 | 4 5 2 . . . 3 1 . 2 . 1 1 . . . 2 1 . 1 4 . . 6 . . . . 1 4 . Penetration Max . | . . . . . . . . . . . . . . . . . . . . . . . . . . . . . . . Secondary Targets 2 | . . . . . . . . . . . . . . . . . . . . . . . 2 . . . . . . . Max Gunslinging Chain 1 | . . . . . . . . . . . . . . . . . . . . . . . 1 . . . . . . . Shots Hit Robots 315 | 3 30 25 . 3 24 10 19 . 3 . 5 27 9 6 52 7 9 1 1 17 4 . 15 . . 16 21 . 7 1 Core Hits 267 | 4 27 12 . . 6 20 17 4 7 . 22 16 1 9 39 18 6 . . 3 2 . 8 . . 21 22 . 3 . Critical Kills 3 | . . . . . . . . . . . . . . . . . . . . . . . 1 . . . 1 . 1 . Critical Parts Destroyed 7 | . 1 . . . . . 2 . . . . . . . . . 2 . . . . . 1 . . . 1 . . . Critical Strikes 33 | . 1 . . . 3 . 2 . . . . 7 . 1 6 . 2 1 . 1 . . 2 . . 4 2 . 1 . Destroy 9 | . 1 . . . . . . . . . . . . . . . 2 . . 1 . . 2 . . . 2 . 1 . Smash 2 | . . . . . . . 2 . . . . . . . . . . . . . . . . . . . . . . . Sever 22 | . . . . . 3 . . . . . . 7 . 1 6 . . 1 . . . . . . . 4 . . . . Melee Attacks 542 | . . 17 5 3 70 4 72 . 4 8 6 101 2 16 58 1 7 4 16 3 9 . 7 2 . 39 48 11 15 14 Impact 27 | . . . . . . . 24 . 1 2 . . . . . . . . . . . . . . . . . . . . Slashing 442 | . . 17 5 . 69 4 48 . 3 6 6 101 2 16 55 . 7 4 16 3 9 . 2 1 . 17 45 6 . . Piercing 69 | . . . . . . . . . . . . . . . 3 1 . . . . . . 5 1 . 22 3 5 15 14 Sneak Attacks 55 | . . . . 3 3 4 8 . . . . 6 2 1 7 . 6 1 . 3 . . 6 . . 2 3 . . . Combat Hostiles 2 | . . . . . . . . . . . . . . . 2 . . . . . . . . . . . . . . . Follow-up Attacks 21 | . . . . . 2 . 5 . . . . 4 . . 7 . . . . . . . 2 . . 1 . . . . Damage Inflicted 24514 | 61 778 580 . . 1061 2455 1817 236 428 . 1081 2130 391 1088 4251 815 677 92 21 618 139 . 761 . . 1959 2888 . 187 . Guns 2033 | 61 429 183 . . . . . . . . . . . . . 23 79 . 21 405 . . 266 . . . 379 . 187 . Cannons 977 | . . 356 . . . . . . . . . . 229 . 133 259 . . . . . . . . . . . . . . Explosions 11065 | . 349 10 . . . 2120 814 236 428 . 1005 714 . 858 1707 485 . . . . . . . . . 1306 1033 . . . Melee 10396 | . . 31 . . 1061 335 1003 . . . 76 1416 162 230 2411 48 598 92 . 213 139 . 495 . . 610 1476 . . . Ramming 43 | . . . . . . . . . . . . . . . . . . . . . . . . . . 43 . . . . Kinetic 1663 | 41 429 183 . . . . . . . . . . . . . 23 79 . . 220 . . 122 . . . 379 . 187 . Thermal 1618 | 20 . 356 . . . . 271 . . . . . 229 . 133 259 . . 21 185 . . 144 . . . . . . . Explosive 10345 | . 349 10 . . . 2120 330 . 428 . 1005 714 . 858 1707 485 . . . . . . . . . 1306 1033 . . . Electromagnetic 449 | . . . . . . . 213 236 . . . . . . . . . . . . . . . . . . . . . . Impact 151 | . . . . . . . 151 . . . . . . . . . . . . . . . . . . . . . . . Slashing 9569 | . . 31 . . 1061 335 852 . . . 76 1416 162 230 2356 . 598 92 . 213 139 . 159 . . 373 1476 . . . Piercing 676 | . . . . . . . . . . . . . . . 55 48 . . . . . . 336 . . 237 . . . . Highest Corruption 7 | . . . . . 3 3 3 . . . . . . . . . . . . . . . . . . . . 7 . 5 Average Corruption 3 | . . . . . 2 3 3 . . . . . . . . . . . . . . . . . . . . 7 . 1 Corruption Purged 7 | . . . . . . . . . . . . . . . . 7 . . . . . . . . . . . . . . Corruption Blocked . | . . . . . . . . . . . . . . . . . . . . . . . . . . . . . . . Effects 37 | . . . . . 15 5 6 . . . . . . . . . . . . . . . . . . . . 10 . 1 Message Errors 11 | . . . . . 7 2 1 . . . . . . . . . . . . . . . . . . . . 1 . . Matter Fused 9 | . . . . . 2 . 2 . . . . . . . . . . . . . . . . . . . . 5 . . Heat Flow Errors 2 | . . . . . 2 . . . . . . . . . . . . . . . . . . . . . . . . . Energy Discharges 6 | . . . . . 1 2 3 . . . . . . . . . . . . . . . . . . . . . . . Parts Fused 1 | . . . . . 1 . . . . . . . . . . . . . . . . . . . . . . . . . Data Loss (minor) 3 | . . . . . 2 1 . . . . . . . . . . . . . . . . . . . . . . . . Data Loss (major) 2 | . . . . . . . . . . . . . . . . . . . . . . . . . . . . 2 . . Misfires 2 | . . . . . . . . . . . . . . . . . . . . . . . . . . . . 1 . 1 Alerts 1 | . . . . . . . . . . . . . . . . . . . . . . . . . . . . 1 . . Overload Shots 4 | . . . . . . . . . . . . . . . . . . . . 1 . . . 1 . 2 . . . . Effects 1 | . . . . . . . . . . . . . . . . . . . . . . . . . . 1 . . . . Short Circuit 1 | . . . . . . . . . . . . . . . . . . . . . . . . . . 1 . . . . Overflow Damage 2179 | . 10 . . . 144 70 164 . 9 . . 260 12 82 245 . 91 . . . 26 . 102 . . 86 878 . . . Projectiles . | . . . . . . . . . . . . . . . . . . . . . . . . . . . . . . . Explosions 282 | . 10 . . . . . 45 . 9 . . 41 . 48 13 . . . . . . . . . . 52 64 . . . Melee 1897 | . . . . . 144 70 119 . . . . 219 12 34 232 . 91 . . . 26 . 102 . . 34 814 . . . Knockbacks . | . . . . . . . . . . . . . . . . . . . . . . . . . . . . . . . Impact . | . . . . . . . . . . . . . . . . . . . . . . . . . . . . . . . Kinetic . | . . . . . . . . . . . . . . . . . . . . . . . . . . . . . . . Secondary . | . . . . . . . . . . . . . . . . . . . . . . . . . . . . . . . Self-Inflicted Damage 300 | . 62 . . . . 7 46 . 44 . . 98 . . . . . . . . . . . . . 43 . . . . Shots 6 | . 1 . . . . 1 2 . 1 . . 1 . . . . . . . . . . . . . . . . . . Rammed . | . . . . . . . . . . . . . . . . . . . . . . . . . . . . . . . Targets Rammed . | . . . . . . . . . . . . . . . . . . . . . . . . . . . . . . . Kicked . | . . . . . . . . . . . . . . . . . . . . . . . . . . . . . . . Crushed . | . . . . . . . . . . . . . . . . . . . . . . . . . . . . . . . Highest Temperature 301 | . 72 150 . . 273 1 4 7 3 43 6 179 301 184 91 249 . . 66 195 . . 131 194 76 290 . . 50 26 Average Temperature 56 | . 14 31 . . 106 1 3 4 3 20 6 54 157 56 26 82 . . 21 84 . . 40 103 47 93 . . 15 16 Received Heat Transfer 1508 | . 114 48 . . 162 . . 90 . 98 18 . . 30 249 18 . 63 39 . . . 9 . 18 66 45 180 135 126 Effects 2 | . . . . . . . . . . . . . . . . . . . . . . . . . . 2 . . . . Interference 2 | . . . . . . . . . . . . . . . . . . . . . . . . . . 2 . . . . Siege Activations . | . . . . . . . . . . . . . . . . . . . . . . . . . . . . . . . Martial Activations . | . . . . . . . . . . . . . . . . . . . . . . . . . . . . . . . Shielding Activations . | . . . . . . . . . . . . . . . . . . . . . . . . . . . . . . . Robots Disrupted . | . . . . . . . . . . . . . . . . . . . . . . . . . . . . . . . Combat Hostiles . | . . . . . . . . . . . . . . . . . . . . . . . . . . . . . . . Robots Corrupted 1 | . . . . . . . 1 . . . . . . . . . . . . . . . . . . . . . . . Combat Hostiles . | . . . . . . . . . . . . . . . . . . . . . . . . . . . . . . . Parts Fried 2 | . . . . . . . 2 . . . . . . . . . . . . . . . . . . . . . . . Impact Corruptions 3 | . . . . . . . 3 . . . . . . . . . . . . . . . . . . . . . . . Robots Melted . | . . . . . . . . . . . . . . . . . . . . . . . . . . . . . . . Combat Hostiles . | . . . . . . . . . . . . . . . . . . . . . . . . . . . . . . . Parts Melted 4 | . . 2 . . . . 1 . . . . . . . 1 . . . . . . . . . . . . . . . Heat Transferred 2249 | 50 . 481 . . . . 250 . . . . . 350 . 200 400 . . 37 259 . . 222 . . . . . . . Parts Sabotaged . | . . . . . . . . . . . . . . . . . . . . . . . . . . . . . . . Parts Stolen . | . . . . . . . . . . . . . . . . . . . . . . . . . . . . . . . Parts Stripped . | . . . . . . . . . . . . . . . . . . . . . . . . . . . . . . . Power Chain Reactions . | . . . . . . . . . . . . . . . . . . . . . . . . . . . . . . . Alert | -11 -10 -10 -8 -8 -6 -6 -6 -6 -6 -6 -5 -5 -5 -5 -5 -5 -5 -5 -4 -4 -4 -4 -4 -4 -3 -3 -3 -3 -2 -1 ------- Run | Yrd Mat Sub Rec Scr Fac Was Fac Low Low Zio Pro Fac Was Fac Ext Cet Arc Hub Fac Was Fac Upp Upp War Pro Res Qua Frg Res Acc Maximum Alert Level 3 | . . . . . . . 1 . . . . 1 1 3 3 2 1 2 1 . . . . . . 2 3 2 3 3 Low Security (%) 58 | 100 100 . 100 . 100 100 79 . . . . 90 75 16 . . 52 62 47 100 100 . . . . 30 . . . . Level 1 14 | . . . . . . . 20 . . . . 9 24 27 16 82 47 22 52 . . . . . . 11 14 . 15 . Level 2 20 | . . . . . . . . . . . . . . 40 62 17 . 15 . . . . . . . 57 17 100 58 89 Level 3 7 | . . . . . . . . . . . . . . 14 20 . . . . . . . . . . . 68 . 26 10 Level 4 . | . . . . . . . . . . . . . . . . . . . . . . . . . . . . . . . Level 5 . | . . . . . . . . . . . . . . . . . . . . . . . . . . . . . . . High Security . | . . . . . . . . . . . . . . . . . . . . . . . . . . . . . . . Max Security . | . . . . . . . . . . . . . . . . . . . . . . . . . . . . . . . Peak Influence 1028 | 10 180 . 115 . 175 72 371 . . . . 394 212 719 877 433 313 508 399 84 135 . . . . 672 1028 606 830 777 Initial 573 | . 3 . 14 . . 49 . . . . . 36 134 106 339 397 165 51 248 64 . . . . . 47 373 573 325 491 Average 241 | 1 19 . 24 . 27 20 130 . . . . 64 173 453 539 326 207 193 203 41 57 . . . . 367 734 539 611 559 Influence Increases 13217 | 15 400 30 199 . 367 64 1051 125 120 . 290 807 118 966 1444 356 268 597 536 54 209 45 375 . 90 1361 1027 592 898 813 Destroy 0b10 Robot/C 3580 | . 200 . . . 100 . 320 20 100 . 260 140 . 240 700 160 80 180 . . 80 . 140 . . 240 200 20 220 180 Destroy 0b10 Robot/NC 360 | 15 45 . . . 15 . 60 . . . . 45 . 5 50 10 30 . . . 15 . . . . 10 35 . 5 20 Destroy Leader 528 | . 60 . . . 24 . 68 . 20 . 30 28 . 30 56 . . 40 . . 24 . 10 . . 34 24 10 50 20 Allied During Kill 880 | . . . . . . . 104 . . . . . . 76 245 99 110 122 . . 67 . . . . . . . 49 8 Successful Hack 614 | . 49 . 14 . 49 . 54 . . . . 32 . 12 24 7 . 32 30 . . . . . . 57 107 56 16 75 Select Force Hacks 280 | . . . 180 . . . . . . . . . . . . . . 100 . . . . . . . . . . . . Disable Machine 750 | . 15 . . . . . 240 . . . . 60 . 30 30 . 30 30 . . . . . . . 45 150 60 45 15 Destroy Structure 1720 | . 31 . 5 . 29 49 85 . . . . 292 118 108 204 80 18 18 46 54 8 . . . . 140 176 16 183 60 Partial Spotted 495 | . . . . . . 15 15 . . . . 15 . 60 15 . . . 45 . 15 . . . . 210 15 45 45 . Lose Combat Pursuer 3510 | . . 30 . . 150 . 105 105 . . . 195 . 405 120 . . 75 315 . . 45 225 . 90 525 120 285 285 435 Miscellaneous 500 | . . . . . . . . . . . . . . . . . . . 100 . . . . . . 100 200 100 . . Influence Decreases 12471 | 10 405 . 154 75 227 204 693 313 163 127 232 480 351 424 1427 654 534 236 860 238 179 40 148 262 20 767 671 1033 658 886 Entered New Map 3814 | . 2 . 16 75 . 91 . 133 33 127 . 22 251 46 355 314 248 96 260 120 . 12 8 262 . 23 291 447 254 328 Time Decay 5370 | 10 219 . 138 . 167 56 472 180 120 . 232 448 100 238 502 150 286 70 270 78 92 20 120 . 20 294 350 206 254 278 Search Patrol Dispatched 200 | . . . . . . . . . . . . . . . . . . . . . . . . . . . . 100 . 100 Lost Part 550 | . 10 . . . 50 . 10 . 10 . . 10 . . 20 30 . 10 10 . . . 20 . . 70 30 70 20 180 Lost Ally 1463 | . . . . . 10 57 211 . . . . . . 140 400 160 . 60 20 40 87 8 . . . 80 . 60 130 . Purge Threat 1074 | . 174 . . . . . . . . . . . . . 150 . . . 300 . . . . . . 300 . 150 . . Squads Dispatched 113 | . 2 . . . 10 . 17 . 1 . . 14 . 9 4 . . 9 10 . 2 . . . . 12 4 3 8 8 Investigation 62 | . 2 . . . 6 . 8 . . . . 8 . 4 3 . . 3 6 . . . . . . 8 1 2 5 6 Extermination 23 | . . . . . 4 . 4 . . . . 4 . 2 . . . . 2 . 1 . . . . . 2 1 2 1 Reinforcement 23 | . . . . . . . 5 . . . . 2 . 3 . . . 4 2 . 1 . . . . 4 . . 1 1 Assault 5 | . . . . . . . . . 1 . . . . . 1 . . 2 . . . . . . . . 1 . . . Garrison . | . . . . . . . . . . . . . . . . . . . . . . . . . . . . . . . Intercept . | . . . . . . . . . . . . . . . . . . . . . . . . . . . . . . . Searches Triggered 2 | . . . . . . . . . . . . . . . . . . . . . . . . . . . . 1 . 1 Construction Impeded 3 | . . . . . . . 1 . . . . . . . . . . . 1 . 1 . . . . . . . . . Haulers Reinforced 6 | . . . . . . . 1 . . . . 2 . . . . . 1 . . . . . . . 2 . . . . Active Scanning Responses . | . . . . . . . . . . . . . . . . . . . . . . . . . . . . . . . Cargo Convoy Interrupts . | . . . . . . . . . . . . . . . . . . . . . . . . . . . . . . . Stealth | -11 -10 -10 -8 -8 -6 -6 -6 -6 -6 -6 -5 -5 -5 -5 -5 -5 -5 -5 -4 -4 -4 -4 -4 -4 -3 -3 -3 -3 -2 -1 --------- Run | Yrd Mat Sub Rec Scr Fac Was Fac Low Low Zio Pro Fac Was Fac Ext Cet Arc Hub Fac Was Fac Upp Upp War Pro Res Qua Frg Res Acc Distress Signals 35 | . . . . . 1 . 2 . . . . 2 . 2 2 1 . 1 3 . 2 . . . . 10 2 3 1 3 Communications Jammed . | . . . . . . . . . . . . . . . . . . . . . . . . . . . . . . . Distress Signals . | . . . . . . . . . . . . . . . . . . . . . . . . . . . . . . . Times Spotted 613 | . 17 13 . . 25 6 19 8 7 28 5 26 5 34 36 9 4 28 33 6 8 7 23 . 9 59 36 45 49 68 Peak Tracking Total 23 | . 3 4 . . 7 4 4 8 11 22 3 6 4 18 5 5 1 22 14 5 5 3 13 . 9 17 6 18 10 23 Tactical Retreats 91 | . . 1 . . 5 . 4 2 . 3 . 9 . 8 5 . . 1 8 . . 2 3 . 2 10 4 6 7 11 ECM-based Alert Blocks 3 | . . . . . . . . . . . . . . . . . . . 3 . . . . . . . . . . . Traps | -11 -10 -10 -8 -8 -6 -6 -6 -6 -6 -6 -5 -5 -5 -5 -5 -5 -5 -5 -4 -4 -4 -4 -4 -4 -3 -3 -3 -3 -2 -1 ------- Run | Yrd Mat Sub Rec Scr Fac Was Fac Low Low Zio Pro Fac Was Fac Ext Cet Arc Hub Fac Was Fac Upp Upp War Pro Res Qua Frg Res Acc Traps Triggered 23 | . 2 . . . 3 . 2 . . . . 1 . 1 3 . . . 2 . . . . . . . . 2 4 3 Indirectly . | . . . . . . . . . . . . . . . . . . . . . . . . . . . . . . . Trap Hack Attempts . | . . . . . . . . . . . . . . . . . . . . . . . . . . . . . . . Triggered . | . . . . . . . . . . . . . . . . . . . . . . . . . . . . . . . Disarmed . | . . . . . . . . . . . . . . . . . . . . . . . . . . . . . . . Reprogrammed . | . . . . . . . . . . . . . . . . . . . . . . . . . . . . . . . Reused . | . . . . . . . . . . . . . . . . . . . . . . . . . . . . . . . Traps Extracted . | . . . . . . . . . . . . . . . . . . . . . . . . . . . . . . . Installed . | . . . . . . . . . . . . . . . . . . . . . . . . . . . . . . . Triggered . | . . . . . . . . . . . . . . . . . . . . . . . . . . . . . . . Most Traps Carried 1 | . . . . 1 1 . . . . . . . . . . . . . . . . . . . . . . . . . Machines | -11 -10 -10 -8 -8 -6 -6 -6 -6 -6 -6 -5 -5 -5 -5 -5 -5 -5 -5 -4 -4 -4 -4 -4 -4 -3 -3 -3 -3 -2 -1 ---------- Run | Yrd Mat Sub Rec Scr Fac Was Fac Low Low Zio Pro Fac Was Fac Ext Cet Arc Hub Fac Was Fac Upp Upp War Pro Res Qua Frg Res Acc Machines Disabled 53 | . 1 2 . . . . 16 . . . . 4 . 2 2 . 2 2 . . . . . 1 . 3 10 4 3 1 Max in Single Turn 8 | . 1 1 . . . . 8 . . . . 3 . 1 2 . . . . . . . . 1 . 1 1 . 1 . Garrison Access 21 | . . . . . 2 . 2 . . . . 3 . 1 . . . 1 2 . 1 . . . . 4 . . 2 3 Network Hub 2 | . . . . . . . . . . . . . . . . . . 2 . . . . . . . . . . . . Machines Repaired . | . . . . . . . . . . . . . . . . . . . . . . . . . . . . . . . Machines Dismantled . | . . . . . . . . . . . . . . . . . . . . . . . . . . . . . . . Machines Sabotaged 2 | . . . . . . . . . . . . . . . . . . 2 . . . . . . . . . . . . Overloaded Fab Kills . | . . . . . . . . . . . . . . . . . . . . . . . . . . . . . . . Hacking | -11 -10 -10 -8 -8 -6 -6 -6 -6 -6 -6 -5 -5 -5 -5 -5 -5 -5 -5 -4 -4 -4 -4 -4 -4 -3 -3 -3 -3 -2 -1 --------- Run | Yrd Mat Sub Rec Scr Fac Was Fac Low Low Zio Pro Fac Was Fac Ext Cet Arc Hub Fac Was Fac Upp Upp War Pro Res Qua Frg Res Acc Machines Accessed 216 | . 8 1 12 7 21 . 24 2 1 . . 33 . 9 10 1 . 4 14 . 1 1 . 5 . 19 15 5 10 13 Terminals 111 | . 8 . 6 . 11 . 11 1 . . . 15 . 2 9 1 . 3 6 . . . . . . 10 13 5 4 6 Fabricators 11 | . . . . . 1 . 2 . . . . 4 . . . . . . 2 . . . . . . 1 . . 1 . Repair Stations 8 | . . . . . 1 . 1 . . . . 2 . 1 1 . . . . . . . . . . . . . . 2 Recycling Units 39 | . . . 6 . 5 . 6 . . . . 7 . 4 . . . . 4 . . . . . . 3 . . 2 2 Scanalyzers 9 | . . . . . 1 . 2 . . . . 2 . . . . . . . . . . . . . 1 2 . 1 . Garrison Access 22 | . . . . . 2 . 2 . . . . 3 . 2 . . . 1 2 . 1 . . . . 4 . . 2 3 Total Hacks 629 | . 31 1 27 26 88 . 71 3 1 . . 83 . 16 22 1 . 14 37 . 2 1 . 18 . 56 54 16 32 29 Successful 404 | . 20 1 14 26 42 . 37 3 1 . . 60 . 10 15 1 . 9 24 . 1 1 . 18 . 36 36 12 23 14 Failed 224 | . 10 . 13 . 46 . 34 . . . . 23 . 6 7 . . 5 13 . 1 . . . . 20 18 4 9 15 Catastrophic 36 | . . . 2 . 9 . 6 . . . . 6 . . 2 . . . 1 . . . . . . 3 4 . . 3 Database Lockouts 1 | . 1 . . . . . . . . . . . . . . . . . . . . . . . . . . . . . Manual 217 | . 12 . 23 . 24 . 32 . . . . 34 . 3 5 1 . 7 15 . . . . . . 15 11 4 17 14 Terminals 407 | . 31 . 21 . 57 . 45 2 . . . 40 . 5 17 1 . 11 23 . . . . . . 42 51 16 24 21 Fabricators 29 | . . . . . 5 . 6 . . . . 12 . . . . . . 4 . . . . . . 1 . . 1 . Repair Stations 23 | . . . . . 2 . 6 . . . . 6 . 2 5 . . . . . . . . . . . . . . 2 Recycling Units 60 | . . . 6 . 16 . 7 . . . . 12 . 5 . . . . 5 . . . . . . 4 . . 2 3 Scanalyzers 22 | . . . . . 3 . 5 . . . . 6 . . . . . . . . . . . . . 4 3 . 1 . Garrison Access 40 | . . . . . 5 . 2 . . . . 7 . 4 . . . 3 5 . 2 . . . . 5 . . 4 3 Terminal Hacks 238 | . 13 1 4 26 20 . 15 3 1 . . 19 . 2 9 1 . 5 14 . . 1 . 18 . 25 31 10 13 7 Record 50 | . . . . 21 . . 1 2 . . . 1 . . . . . . . . . . . 12 . 2 10 . 1 . Part Schematic 5 | . . . 2 . 3 . . . . . . . . . . . . . . . . . . . . . . . . . Robot Analysis 8 | . 1 . . 4 1 . . . . . . 1 . . . . . . . . . . . . . 1 . . . . Prototype ID Bank 13 | . 2 . 1 . 1 . . . . . . 2 . . . . . . . . . . . 5 . . 2 . . . Open Door 11 | . . . . . . . . 1 1 . . . . . 6 1 . . . . . 1 . 1 . . . . . . Level Access Points 5 | . . . . . . . . . . . . . . . . . . 1 . . . . . . . 1 . . 2 1 Branch Access Points 6 | . . . . . 1 . 2 . . . . . . . . . . . . . . . . . . 1 1 . . 1 Emergency Access Points 6 | . . . . . . . 2 . . . . 2 . . . . . . 1 . . . . . . 1 . . . . Machine Index 2 | . . . . . . . . . . . . . . . . . . . . . . . . . . . 1 . 1 . Terminal Index 3 | . . . . . 1 . . . . . . . . . . . . . . . . . . . . . . . 1 1 Fabricator Index 1 | . . . . . 1 . . . . . . . . . . . . . . . . . . . . . . . . . Recycling Unit Index 1 | . . . . . . . . . . . . . . . . . . . . . . . . . . . . . 1 . Garrison Index 3 | . . . . . . . . . . . . . . . . . . . . . . . . . . . 1 1 1 . Alert Level 5 | . . . . . . . 1 . . . . . . . . . . . 1 . . . . . . 1 1 1 . . Unreport Threat 13 | . 2 . . . . . . . . . . . . . 1 . . . 3 . . . . . . 3 2 2 . . Locate Traps 24 | . . . . . 5 . 3 . . . . . . . . . . 1 3 . . . . . . 2 4 3 3 . Dispatch Records 1 | . 1 . . . . . . . . . . . . . . . . . . . . . . . . . . . . . Surveillance Status 1 | . 1 . . . . . . . . . . . . . . . . . . . . . . . . . . . . . Patrol Status 1 | . 1 . . . . . . . . . . . . . . . . . . . . . . . . . . . . . Recall Investigation 6 | . . . . . . . . . . . . 1 . . . . . . . . . . . . . 4 1 . . . Recall Extermination 14 | . . . . . 2 . 3 . . . . 3 . . . . . . 2 . . . . . . 1 2 . 1 . Recall Reinforcements 2 | . . . . . 1 . 1 . . . . . . . . . . . . . . . . . . . . . . . Hauler Manifests 5 | . 1 . . . 1 . . . . . . 1 . . . . . . . . . . . . . 1 1 . . . Registered Components 9 | . 1 . . . 1 . 1 . . . . 1 . . . . . . 1 . . . . . . 1 1 1 . 1 Registered Prototypes 3 | . . . . . . . . . . . . 1 . . . . . . 1 . . . . . . 1 . . . . Zone Layout 38 | . 3 . 1 . 2 . 1 . . . . 6 . 2 2 . . 3 2 . . . . . . 5 4 2 2 3 Proto ID Catalog 2 | . . 1 . 1 . . . . . . . . . . . . . . . . . . . . . . . . . . Fabricator Hacks 15 | . . . . . 3 . 4 . . . . 5 . . . . . . 1 . . . . . . 1 . . 1 . Network Status 7 | . . . . . 1 . 1 . . . . 2 . . . . . . 1 . . . . . . 1 . . 1 . Load Schematic 5 | . . . . . 1 . 2 . . . . 2 . . . . . . . . . . . . . . . . . . Build 3 | . . . . . 1 . 1 . . . . 1 . . . . . . . . . . . . . . . . . . Repair Station Hacks 18 | . . . . . 2 . 3 . . . . 6 . 2 5 . . . . . . . . . . . . . . . Scan Component 10 | . . . . . 1 . 2 . . . . 3 . 1 3 . . . . . . . . . . . . . . . Repair 8 | . . . . . 1 . 1 . . . . 3 . 1 2 . . . . . . . . . . . . . . . Recycling Unit Hacks 9 | . . . . . 3 . . . . . . 4 . 2 . . . . . . . . . . . . . . . . Retrieve Components 9 | . . . . . 3 . . . . . . 4 . 2 . . . . . . . . . . . . . . . . Scanalyzer 19 | . . . . . 3 . 3 . . . . 6 . . . . . . . . . . . . . 3 3 . 1 . Insert Component 5 | . . . . . . . 1 . . . . 1 . . . . . . . . . . . . . . 3 . . . Analyze 1 | . . . . . . . . . . . . 1 . . . . . . . . . . . . . . . . . . Retrieve Study 13 | . . . . . 3 . 2 . . . . 4 . . . . . . . . . . . . . 3 . . 1 . Garrison Access Hacks 20 | . . . . . 2 . 2 . . . . 3 . 1 . . . . 2 . 1 . . . . 4 . . 2 3 Seal Access 20 | . . . . . 2 . 2 . . . . 3 . 1 . . . . 2 . 1 . . . . 4 . . 2 3 Unauthorized Hacks 85 | . 7 . 10 . 9 . 10 . . . . 17 . 3 1 . . 4 7 . . . . . . 3 2 2 6 4 Terminals 37 | . 7 . 4 . 4 . 3 . . . . 5 . . 1 . . 4 1 . . . . . . . 2 2 4 . Assimilate 10 | . . . . . 1 . 1 . . . . 2 . . . . . . 1 . . . . . . . 2 2 1 . Botnet 14 | . 2 . 3 . 2 . 2 . . . . 2 . . 1 . . 1 . . . . . . . . . . 1 . Operators 5 | . . . 1 . 1 . . . . . . 1 . . . . . 1 . . . . . . . . . . 1 . Skim 6 | . 5 . . . . . . . . . . . . . . . . . . . . . . . . . . . 1 . Sabotage 2 | . . . . . . . . . . . . . . . . . . 2 . . . . . . . . . . . . Fabricators 9 | . . . . . . . 1 . . . . 6 . . . . . . 2 . . . . . . . . . . . Report 1 | . . . . . . . . . . . . 1 . . . . . . . . . . . . . . . . . . Prioritize 1 | . . . . . . . . . . . . 1 . . . . . . . . . . . . . . . . . . Liberate 1 | . . . . . . . . . . . . . . . . . . . 1 . . . . . . . . . . . Fabnet 3 | . . . . . . . . . . . . 2 . . . . . . 1 . . . . . . . . . . . Haulers 1 | . . . . . . . . . . . . 1 . . . . . . . . . . . . . . . . . . Recompile 2 | . . . . . . . 1 . . . . 1 . . . . . . . . . . . . . . . . . . Repair Stations 2 | . . . . . . . . . . . . . . . . . . . . . . . . . . . . . . 2 Patch 2 | . . . . . . . . . . . . . . . . . . . . . . . . . . . . . . 2 Recycling Units 37 | . . . 6 . 5 . 6 . . . . 6 . 3 . . . . 4 . . . . . . 3 . . 2 2 Tunnel 6 | . . . 6 . . . . . . . . . . . . . . . . . . . . . . . . . . . Fedlink 27 | . . . . . 5 . 6 . . . . 6 . 3 . . . . 4 . . . . . . 3 . . . . Scrapoids 1 | . . . . . . . . . . . . . . . . . . . . . . . . . . . . . 1 . Scraphulk 3 | . . . . . . . . . . . . . . . . . . . . . . . . . . . . . 1 2 Scanalyzers . | . . . . . . . . . . . . . . . . . . . . . . . . . . . . . . . Garrison Access . | . . . . . . . . . . . . . . . . . . . . . . . . . . . . . . . Data Cores Recovered 4 | . . . . . . . 1 . . . . 2 . . . . . . . . . . . . . . 1 . . . Used 1 | . . . . . . . . . . . . . . . . . . . . . . . . . . . 1 . . . Hacking Detections 111 | . 6 . 6 . 12 . 14 . . . . 23 . 4 8 . . 2 4 . . . . . . 11 9 4 5 3 Full Trace Events 4 | . . . . . 1 . . . . . . 1 . 1 . . . 1 . . . . . . . . . . . . Feedback Events . | . . . . . . . . . . . . . . . . . . . . . . . . . . . . . . . Feedback Blocked . | . . . . . . . . . . . . . . . . . . . . . . . . . . . . . . . Robot Schematics Acquired 6 | . . . . . . . . . . 4 . . . . . . . . . . . . . . . . 2 . . . Robots Built . | . . . . . . . . . . . . . . . . . . . . . . . . . . . . . . . Authchips . | . . . . . . . . . . . . . . . . . . . . . . . . . . . . . . . Time . | . . . . . . . . . . . . . . . . . . . . . . . . . . . . . . . Total Robot Build Rating . | . . . . . . . . . . . . . . . . . . . . . . . . . . . . . . . Part Schematics Acquired 23 | . . . 2 . 3 . . . . 13 . 1 . . . . . . . . . . . . . . 4 . . . Parts Built 3 | . . . . . 1 . 1 . . . . 1 . . . . . . . . . . . . . . . . . . Authchips 2 | . . . . . . . 1 . . . . 1 . . . . . . . . . . . . . . . . . . Time 172 | . . . . . 58 . 47 . . . . 67 . . . . . . . . . . . . . . . . . . Total Part Build Rating 12 | . . . . . 3 . 5 . . . . 4 . . . . . . . . . . . . . . . . . . Part Studies Acquired 11 | . . . . . 3 . 1 . . . . 3 . . . . . . . . . . . . . 3 . . 1 . Parts Repaired 8 | . . . . . 1 . 1 . . . . 3 . 1 2 . . . . . . . . . . . . . . . Time 339 | . . . . . 16 . 47 . . . . 172 . 35 69 . . . . . . . . . . . . . . . Parts Recycled . | . . . . . . . . . . . . . . . . . . . . . . . . . . . . . . . Recycled Matter . | . . . . . . . . . . . . . . . . . . . . . . . . . . . . . . . Retrieved Matter . | . . . . . . . . . . . . . . . . . . . . . . . . . . . . . . . Retrieved Components 23 | . . . . . 7 . . . . . . 15 . 1 . . . . . . . . . . . . . . . . Parts Scanalyzed 1 | . . . . . . . . . . . . 1 . . . . . . . . . . . . . . . . . . Part Schematics Acquired 1 | . . . . . . . . . . . . 1 . . . . . . . . . . . . . . . . . . Parts Damaged . | . . . . . . . . . . . . . . . . . . . . . . . . . . . . . . . Bothacking | -11 -10 -10 -8 -8 -6 -6 -6 -6 -6 -6 -5 -5 -5 -5 -5 -5 -5 -5 -4 -4 -4 -4 -4 -4 -3 -3 -3 -3 -2 -1 ------------ Run | Yrd Mat Sub Rec Scr Fac Was Fac Low Low Zio Pro Fac Was Fac Ext Cet Arc Hub Fac Was Fac Upp Upp War Pro Res Qua Frg Res Acc Used RIF Installer . | . . . . . . . . . . . . . . . . . . . . . . . . . . . . . . . Robots Hacked 14 | . . . . 3 1 . . . . . . . . . . . . . . . 1 1 1 . . 4 . 2 1 . Non-combat 1 | . . . . . 1 . . . . . . . . . . . . . . . . . . . . . . . . . Combat 13 | . . . . 3 . . . . . . . . . . . . . . . . 1 1 1 . . 4 . 2 1 . Robot Hacks Applied 4 | . . . . 3 1 . . . . . . . . . . . . . . . . . . . . . . . . . parse_system 3 | . . . . 3 . . . . . . . . . . . . . . . . . . . . . . . . . . find_chute 1 | . . . . . 1 . . . . . . . . . . . . . . . . . . . . . . . . . Relay Couplers Released 2 | . . . . . . . . . . . . . . . . . . 2 . . . . . . . . . . . . Machine Destruction 2 | . . . . . . . . . . . . . . . . . . 2 . . . . . . . . . . . . Fabnet Peak Effective % 6 | . . . . . . . . . . . . . . . . . . . 6 6 6 6 6 6 5 5 5 5 1 . Autooverrided 10 | . . . . . . . . . . . . . . . . . . . . . 1 1 1 . . 4 . 2 1 . Robots Rewired 20 | . . . . . . . . . . . . 1 . . 18 . . . 1 . . . . . . . . . . . Allies Hacked . | . . . . . . . . . . . . . . . . . . . . . . . . . . . . . . . Hacks Repelled . | . . . . . . . . . . . . . . . . . . . . . . . . . . . . . . . Allies | -11 -10 -10 -8 -8 -6 -6 -6 -6 -6 -6 -5 -5 -5 -5 -5 -5 -5 -5 -4 -4 -4 -4 -4 -4 -3 -3 -3 -3 -2 -1 -------- Run | Yrd Mat Sub Rec Scr Fac Was Fac Low Low Zio Pro Fac Was Fac Ext Cet Arc Hub Fac Was Fac Upp Upp War Pro Res Qua Frg Res Acc Total Allies 119 | . . . . . 1 20 1 . . 2 . 2 19 . 28 5 . . 1 19 1 1 1 . . 4 . 4 8 2 Largest Group 19 | . . . . . 1 19 13 . . 2 . 1 19 8 8 8 5 4 1 19 14 1 1 . . 1 . 3 6 1 Highest-Rated Group 702 | . . . . . 26 702 499 . . 76 . 49 702 328 364 617 521 375 49 702 558 47 47 . . 56 . 206 459 139 Highest-Rated Ally 183 | . . . . . 26 50 46 . . 51 . 49 50 46 159 159 137 96 49 50 56 47 47 . . 56 . 116 183 139 Initial UFD Resources 129 | . . . . . 22 42 42 54 54 54 56 56 78 78 84 84 84 84 88 106 106 106 106 106 109 109 125 125 129 125 Total Orders 6 | . . . . . . . . . . . . . . . 6 . . . . . . . . . . . . . . . STAY 3 | . . . . . . . . . . . . . . . 3 . . . . . . . . . . . . . . . FOLLOW 3 | . . . . . . . . . . . . . . . 3 . . . . . . . . . . . . . . . Ally Attacks 899 | . . . . . . 125 57 . . . . 2 127 32 144 46 29 29 3 125 63 2 . . . 10 . 7 64 34 Total Damage 28729 | . . . . . . 3492 1006 . . . . 75 5860 742 2688 1458 1176 1275 138 3962 1125 40 . . . 261 . 281 3153 1997 Kills 110 | . . . . . . 6 9 . . . . . 16 4 16 9 4 9 . 8 5 . . . . . . 1 10 13 Allies Corrupted 1 | . . . . . . . . . . . . . . . . . . . 1 . . . . . . . . . . . Allies Melted . | . . . . . . . . . . . . . . . . . . . . . . . . . . . . . . . Intel | -11 -10 -10 -8 -8 -6 -6 -6 -6 -6 -6 -5 -5 -5 -5 -5 -5 -5 -5 -4 -4 -4 -4 -4 -4 -3 -3 -3 -3 -2 -1 ------- Run | Yrd Mat Sub Rec Scr Fac Was Fac Low Low Zio Pro Fac Was Fac Ext Cet Arc Hub Fac Was Fac Upp Upp War Pro Res Qua Frg Res Acc Active Infowar (turns) 16591 | 4 543 218 . 755 1798 229 1279 366 258 388 758 2004 213 508 1357 313 637 149 586 195 206 226 258 264 71 648 799 422 548 591 Optics 14638 | . . . . . 1389 229 1279 366 258 388 758 2004 213 508 1357 313 637 149 586 195 206 226 258 264 71 648 799 422 548 567 Sensors 12683 | . . . . . 1561 229 1279 352 243 388 758 1890 213 441 1357 313 637 149 586 72 206 226 227 . . . 593 312 90 561 Terrain 778 | . . . . 755 23 . . . . . . . . . . . . . . . . . . . . . . . . . Structural 701 | . . . . . . . . . . . . . . . . . . . . . 131 167 258 145 . . . . . . Seismic 765 | 4 543 218 . . . . . . . . . . . . . . . . . . . . . . . . . . . . Machine Analysis 15004 | . . . . . 1794 229 1279 366 258 388 758 2004 213 508 1357 313 637 149 586 195 206 226 258 264 71 585 799 422 548 591 Cloaking 14 | . . . . . . . . . . . . . . . . . . . . . . . . 10 1 3 . . . . Jamming 33 | . . . . . . . . . . . . . . . . . . . 6 27 . . . . . . . . . . ECM 5 | . . . . . . . . . . . . . . . . . . . 5 . . . . . . . . . . . Robot Analysis Total 8 | . 1 . . 4 1 . . . . . . 1 . . . . . . . . . . . . . 1 . . . . Derelict Logs Recovered 14 | . . 3 . 3 . . . 2 . 2 2 . . . . . . . . . . 2 . . . . . . . . Drone Launches . | . . . . . . . . . . . . . . . . . . . . . . . . . . . . . . . Drone Recoveries . | . . . . . . . . . . . . . . . . . . . . . . . . . . . . . . . Exploration | -11 -10 -10 -8 -8 -6 -6 -6 -6 -6 -6 -5 -5 -5 -5 -5 -5 -5 -5 -4 -4 -4 -4 -4 -4 -3 -3 -3 -3 -2 -1 ------------- Run | Yrd Mat Sub Rec Scr Fac Was Fac Low Low Zio Pro Fac Was Fac Ext Cet Arc Hub Fac Was Fac Upp Upp War Pro Res Qua Frg Res Acc Turns Passed 21483 | 71 939 2230 1087 2064 1798 229 1279 366 258 388 758 2004 213 508 1357 313 637 149 586 195 206 226 258 264 71 648 799 422 548 612 Spaces Moved 35493 | 47 648 1142 668 1698 2665 414 2641 937 650 1082 1239 4812 427 1093 1758 446 181 395 1480 432 630 743 694 829 297 1943 1852 1110 1309 1231 Core 38 | 3 . . . . . . . . . . . . . . . . . . . . . . . . . . . . . 35 Treads 1339 | . . 589 668 82 . . . . . . . . . . . . . . . . . . . . . . . . . . Legs . | . . . . . . . . . . . . . . . . . . . . . . . . . . . . . . . Wheels 3161 | 44 648 553 . 1616 300 . . . . . . . . . . . . . . . . . . . . . . . . . Hover 1305 | . . . . . 1298 . . . . . . . 7 . . . . . . . . . . . . . . . . . Flight 29650 | . . . . . 1067 414 2641 937 650 1082 1239 4812 420 1093 1758 446 181 395 1480 432 630 743 694 829 297 1943 1852 1110 1309 1196 Fastest Speed 12 | 50 95 125 160 115 27 27 27 28 32 34 34 21 28 28 29 29 31 31 14 14 23 28 12 23 12 12 17 17 19 31 Average Speed 43 | 89 119 171 160 119 52 28 32 31 32 34 34 29 31 28 29 31 31 31 27 22 24 28 26 23 22 22 26 26 29 34 Slowest Speed 240 | 95 125 240 160 160 115 34 39 32 34 34 34 34 220 29 29 99 31 31 31 23 28 28 28 23 23 23 27 27 54 150 Overloaded Moves 235 | . . . . . . . 42 12 . . . 6 . . . . . . 14 9 . . 36 . 17 52 7 19 5 16 Propulsion Burnouts 1 | . . . . . . . . . . . . . . . . . . . . . . . 1 . . . . . . . Robots Hopped 117 | . . . . . 8 . 24 . . . . 5 . 7 14 . . 11 9 . 1 . . . . 9 15 1 9 4 Potential Cave-ins 19 | . . 8 . . . . 3 . . . . . . 2 . . . . 6 . . . . . . . . . . . Cave-ins Triggered 1 | . . 1 . . . . . . . . . . . . . . . . . . . . . . . . . . . . Teleports 4 | . . . . . . . . . . . . . . . . . . . . . . . . . . . 2 1 . 1 Exploration Rate (%) 68 | 4 89 58 96 94 51 96 53 93 69 91 91 70 95 27 86 85 97 43 43 95 15 91 79 90 59 61 97 51 30 39 Regions Visited 30 Branch Regions 17 Pre-discovered Areas 11 | . 1 . 6 2 1 . . . . . . . . . . . . . . . . 1 . . . . . . . . Known Exits Taken 22 | . . 1 1 1 . . 1 1 1 1 1 . . 1 1 1 1 1 . . 1 1 1 1 1 1 1 1 1 . Unknown Exits Taken 2 | 1 1 . . . . . . . . . . . . . . . . . . . . . . . . . . . . . Scrap Searched 35 | . . 10 . 4 . . . 5 1 4 5 . . . . . . . . . . 4 1 . 1 . . . . . Spaces Dug 409 | . 3 35 5 . 29 6 79 . 24 . 27 62 . 15 3 . . 1 25 . . . 3 1 . 22 34 8 15 12 Terrain Destroyed 1181 | . 30 53 5 . 29 54 119 . 80 . 104 157 . 58 145 70 1 1 27 5 1 . 12 1 . 68 119 11 19 12 Melee 246 | . . 14 5 . 29 . 41 . 3 . 4 52 . 5 2 . . 1 15 . . . 1 1 . 16 23 8 14 12 Projectile 141 | . 1 36 . . . . . . . . . 16 . 15 1 7 1 . 12 5 1 . 11 . . 6 21 3 5 . AOE 794 | . 29 3 . . . 54 78 . 77 . 100 89 . 38 142 63 . . . . . . . . . 46 75 . . . Terrain Rammed 1 | . . . . . . . . . . . . . . . . . . . . . . . . . . 1 . . . . Walls Destroyed . | . . . . . . . . . . . . . . . . . . . . . . . . . . . . . . . Machines Disabled 1 | . . . . . . . . . . . . . . . . . . . . . . . . . . 1 . . . . Actions | -11 -10 -10 -8 -8 -6 -6 -6 -6 -6 -6 -5 -5 -5 -5 -5 -5 -5 -5 -4 -4 -4 -4 -4 -4 -3 -3 -3 -3 -2 -1 --------- Run | Yrd Mat Sub Rec Scr Fac Was Fac Low Low Zio Pro Fac Was Fac Ext Cet Arc Hub Fac Was Fac Upp Upp War Pro Res Qua Frg Res Acc Total 40008 | 62 763 1310 680 1736 2953 500 2932 999 680 1092 1551 5249 496 1244 2489 594 746 403 1608 500 664 759 736 898 300 2062 1994 1214 1407 1387 Wait 3075 | . 49 42 2 5 171 50 196 49 6 . 295 264 59 113 529 108 550 16 63 53 19 15 22 52 . 44 23 95 52 133 Move 35243 | 46 647 1140 667 1697 2649 413 2594 936 649 1081 1238 4802 426 1079 1733 445 180 373 1463 431 627 742 693 828 296 1925 1824 1107 1290 1222 Hop 104 | . . . . . 8 . 22 . . . . 5 . 6 10 . . 10 8 . 1 . . . . 8 12 1 9 4 Pick Up 104 | 4 17 9 2 9 9 2 9 2 1 2 . 10 1 3 5 . . . 4 . 2 . . . . 4 7 . 2 . Fast Attach 145 | 7 2 6 1 5 14 2 9 2 2 1 . 14 . 2 4 6 3 . 10 . 1 1 . 7 2 7 16 . 15 6 Attach 60 | . 1 1 . 2 15 2 3 . 3 . . 7 . 1 . 2 . . 2 . 1 . 2 1 . 6 3 2 3 3 Detach 24 | . . 1 . 1 2 1 2 . 2 . . 4 . . . . . . 1 . . . 1 2 . 3 1 . 3 . Swap 61 | . 7 11 . . 5 . 9 3 2 . . 7 . 6 6 1 . . . . . 1 . 1 . . . . . 2 Drop 166 | . 8 16 3 14 16 6 14 3 3 2 . 17 1 3 2 8 2 . 10 . 3 . . 5 2 7 14 . 6 1 Fire 380 | 5 32 66 . . . 20 15 3 9 . 12 25 7 18 17 23 4 . 15 13 1 . 13 1 . 21 46 1 12 1 Melee 481 | . . 17 5 3 64 4 59 . 3 6 6 83 2 13 49 1 7 4 16 3 9 . 5 1 . 36 48 8 15 14 Ram 1 | . . . . . . . . . . . . . . . . . . . . . . . . . . 1 . . . . Kick . | . . . . . . . . . . . . . . . . . . . . . . . . . . . . . . . Crush . | . . . . . . . . . . . . . . . . . . . . . . . . . . . . . . . Escape Stasis 32 | . . 1 . . . . . . . . . . . . 30 . . . . . . . . . . . . . . 1 Rewire 131 | . . . . . . . . . . . . 11 . . 104 . . . 16 . . . . . . . . . . . Trap . | . . . . . . . . . . . . . . . . . . . . . . . . . . . . . . . Miscellaneous 1 | . . . . . . . . 1 . . . . . . . . . . . . . . . . . . . . . . Route ------- -11/Scrapyard -10/Materials (discovered 6 exits: [*Mat x3] / *Min x2 / *Sub) -10/Subcaves (discovered 4 exits: Mat x2 / *Rec / *Scr) -8/Recycling (discovered 2 exits: *Fac / *Scr) -8/Scraptown (discovered 2 exits: *Fac x2) -6/Factory (discovered 4 exits: *Fac x2 / Low x2) -6/Waste -6/Factory (discovered 4 exits: *Fac x2 / *Low x2) -6/Lower Caves -6/Lower Caves (discovered 2 exits: *Fac / *Zio) -6/Zion -5/Proximity Caves -5/Factory (discovered 7 exits: *Fac x3 / *Upp x2 / *Ext x2) -5/Waste -5/Factory (discovered 2 exits: *Upp / *Ext) -5/Extension (discovered 2 exits: *Fac / *Cet) -5/Cetus (discovered 2 exits: *Fac / *Arc) -5/Archives (discovered 3 exits: *Fac / *Hub x2) -5/Hub_04(d) (discovered 2 exits: *Fac x2) -4/Factory (discovered 2 exits: *Upp x2) -4/Waste -4/Factory -4/Upper Caves -4/Upper Caves (discovered 2 exits: *Res / *War) -4/Warlord -3/Proximity Caves -3/Research (discovered 5 exits: *Res x3 / *Qua x2) -3/Quarantine (discovered 3 exits: *Res / *Sec / *Frg) -3/Protoforge -2/Research (discovered 3 exits: *Acc x2 / *Tes) -1/Access (discovered 1 exit: Com) History --------- Turn | Location | Event 9 | -11/Scrapyard | Discovered new exit (range 15) 72 | -11/Scrapyard | Entered Materials 212 | -10/Materials | Discovered new exit (range 15) 299 | -10/Materials | Central database locked down 315 | -10/Materials | Build established: Mutant 379 | -10/Materials | Discovered new exit (range 14) 496 | -10/Materials | Discovered new exit (range 4) 553 | -10/Materials | Discovered new exit (range 13) 599 | -10/Materials | Learned 4 Subcaves zone layouts 660 | -10/Materials | Loaded intel: 3 trap records 669 | -10/Materials | Discovered new exit (range 4) 711 | -10/Materials | Learned Storage emergency access door positions 752 | -10/Materials | Learned location of 1 exit from Recycling 763 | -10/Materials | Discovered new exit (range 12) 784 | -10/Materials | Learned 4 Recycling zone layouts 806 | -10/Materials | Identified exit to Mines 875 | -10/Materials | Learned location of Subcaves (-10) 1011 | -10/Materials | Entered Subcaves 1011 | -10/Subcaves | Learned Materials garrison access intel 1012 | -10/Subcaves | Shifting Twisted Machinery released Battle Rifle 1012 | -10/Subcaves | Approached by a straggling Scientist 1012 | -10/Subcaves | Identified exit to Materials 1012 | -10/Subcaves | Identified exit to Recycling 1035 | -10/Subcaves | Shifting Twisted Machinery released Sub. Monowheel 1106 | -10/Subcaves | Disturbed a concealed Subdweller 1367 | -10/Subcaves | Learned location of 1 exit from Materials 1565 | -10/Subcaves | Shifting Twisted Machinery released Mak. System Restoration Module 1572 | -10/Subcaves | Shifting Twisted Machinery released Battle Rifle 1815 | -10/Subcaves | Visited 4L-MR0's lab 1852 | -10/Subcaves | Found Meta Core 2286 | -10/Subcaves | Disturbed a concealed Subdweller 2286 | -10/Subcaves | Disturbed a concealed Subdweller 2287 | -10/Subcaves | Core integrity fell below 50% 2643 | -10/Subcaves | Crushed by falling debris 2690 | -10/Subcaves | Ambushed by Subdweller buried in earth 2880 | -10/Subcaves | Core integrity fell below 20% 3241 | -10/Subcaves | Entered Recycling 3242 | -8/Recycling | Identified exit to Scraptown 3243 | -8/Recycling | Identified exit to Factory 4288 | -8/Recycling | Scanned before Scraplab entrance 4311 | -8/Recycling | Entered Scraplab 4328 | -8/Recycling | Entered Scraptown 4526 | -8/Scraptown | Visited Comm Corps 4579 | -8/Scraptown | Visited Fellowship of the Rings 4593 | -8/Scraptown | Visited Cyclists 4620 | -8/Scraptown | Visited Shadow of the Wyrm 4660 | -8/Scraptown | Scanned Subdweller tech in exchange for log data 4663 | -8/Scraptown | Learned Research trap positions 4664 | -8/Scraptown | Learned Factory terminal intel 4666 | -8/Scraptown | Learned 8 Research zone layouts 4704 | -8/Scraptown | Visited Awakened 4749 | -8/Scraptown | Visited UFD Registry 4751 | -8/Scraptown | Registered with UFD as "Slughead" 4805 | -8/Scraptown | Entered Cyclist Reading Room 4810 | -8/Scraptown | Learned location of Zion (-6) 5040 | -8/Scraptown | Discovered exit to Factory (range 5) 5160 | -8/Scraptown | Guru changed UFD alias to "Nullbox" 5492 | -8/Scraptown | Visited SPCMW 5529 | -8/Scraptown | Visited CPS Storage 5576 | -8/Scraptown | Visited Junk Repository 5608 | -8/Scraptown | Visited Junk Repository 5662 | -8/Scraptown | Visited Science Guys 5703 | -8/Scraptown | Visited Infowarlord's Domain 5713 | -8/Scraptown | Found Exp. Sensor Array 5734 | -8/Scraptown | Visited Scrap Suit Storage 5772 | -8/Scraptown | Visited Analyses Database 5822 | -8/Scraptown | Visited Supply Room 5857 | -8/Scraptown | Visited Scrapoid Research Area 5889 | -8/Scraptown | Visited Abandonware Association 5901 | -8/Scraptown | Learned abandonware demo "REPAIR.EXE" 5901 | -8/Scraptown | Learned abandonware demo "REVENGE.EXE" 6160 | -8/Scraptown | Visited LU-1G1's Boring Crew 6326 | -8/Scraptown | Met Optimus 6326 | -8/Scraptown | Accepted into 0bPrime 6383 | -8/Scraptown | Discovered exit to Factory (range 3) 6392 | -8/Scraptown | Entered Factory 6392 | -6/Factory | Evolved 8 slots: Propulsion x2, Utility x6 6393 | -6/Factory | Loaded intel: 26 terminal locations 6634 | -6/Factory | Repaired VTOL Module+ 6702 | -6/Factory | Build established: Hacker-Assassin 6864 | -6/Factory | Identified exit to Lower Caves 6942 | -6/Factory | Fabricated Imp. VTOL Module? 7056 | -6/Factory | Build established: Hacker-Scout 7216 | -6/Factory | Lost 6 parts (1p2n2u1w) 7440 | -6/Factory | Discovered new exit (range 18) 7620 | -6/Factory | Loaded intel: 8 recycling unit locations 7626 | -6/Factory | Learned location of Protoforge (-3) 7817 | -6/Factory | Discovered new exit (range 20) 7886 | -6/Factory | Attached Meta Core, gained temporary slots: Propulsion, Utility, Weapon 8190 | -6/Factory | Sucked down chute 8190 | -6/Factory | Entered Waste 8191 | -6/Waste | Met a frightened Derelict 8195 | -6/Waste | Spotted C-40 Crusher 8195 | -6/Waste | Spotted C-40 Crusher 8195 | -6/Waste | Spotted C-40 Crusher 8200 | -6/Waste | Spotted C-40 Crusher 8236 | -6/Waste | Destroyed C-40 Crusher 8239 | -6/Waste | Spotted C-40 Crusher 8248 | -6/Waste | Warlord forces began an assault 8271 | -6/Waste | Allies destroyed C-40 Crusher 8273 | -6/Waste | Allies destroyed C-40 Crusher 8274 | -6/Waste | Allies destroyed C-40 Crusher 8282 | -6/Waste | Spotted C-40 Crusher 8300 | -6/Waste | Destroyed C-40 Crusher 8307 | -6/Waste | Allies destroyed C-40 Crusher 8316 | -6/Waste | Discovered new exit (range 12) 8338 | -6/Waste | Lost 4 allies 8382 | -6/Waste | Identified exit to Factory 8419 | -6/Waste | Entered Factory 8419 | -6/Factory | Accompanied by 13 allies 8482 | -6/Factory | Repaired Broken Impulse Thruster Array? 8564 | -6/Factory | Loaded intel: 8 recycling unit locations 8586 | -6/Factory | Lost 3 allies 8736 | -6/Factory | Discovered new exit (range 5) 8738 | -6/Factory | Identified exit to Factory 8898 | -6/Factory | Watched by a mysterious "MATRIX" hacker. 9138 | -6/Factory | Discovered exit to Lower Caves (range 7) 9232 | -6/Factory | Fabricated Imp. Hacking Suite (x1) 9251 | -6/Factory | Discovered exit to Factory (range 9) 9698 | -6/Factory | Entered Lower Caves 9700 | -6/Lower Caves | Core integrity fell below 50% 9702 | -6/Lower Caves | Spotted B-75 Beast 9703 | -6/Lower Caves | Encountered a Warlord checkpoint 9899 | -6/Lower Caves | Identified exit to Lower Caves 9938 | -6/Lower Caves | Activated DRS Beacon 10064 | -6/Lower Caves | Entered another Lower Caves area 10081 | -6/Lower Caves | Discovered exit to Factory (range 14) 10292 | -6/Lower Caves | Attracted the attention of an 0b10 outpost 10310 | -6/Lower Caves | Discovered new exit (range 10) 10322 | -6/Lower Caves | Identified exit to Zion 10322 | -6/Lower Caves | Entered Zion 10333 | -6/Zion | System corruption cleaned by Quarantine Array 10341 | -6/Zion | Discovered new exit (range 20) 10347 | -6/Zion | Found GAL Module 10356 | -6/Zion | Found CR-A16's Pointy Stick 10379 | -6/Zion | Learned Factory trap positions 10427 | -6/Zion | Gained Derelict followers 10481 | -6/Zion | Learned Factory terminal intel 10637 | -6/Zion | Turned away by Imprinter 10649 | -6/Zion | Attempted to imprint without authorization 10649 | -6/Zion | Attacked by Zionites 10688 | -6/Zion | Spotted 0V-RAS(B) 10690 | -6/Zion | Spotted LU-OE7(B) 10710 | -6/Zion | Identified exit to Proximity Caves 10710 | -6/Zion | Entered Proximity Caves 11060 | -5/Proximity Caves | Learned 8 Factory zone layouts 11385 | -5/Proximity Caves | Discovered exit to Factory (range 8) 11394 | -5/Proximity Caves | Learned 8 Factory zone layouts 11468 | -5/Proximity Caves | Entered Factory 11468 | -5/Factory | Evolved 2 slots: Propulsion x1, Utility x1 11469 | -5/Factory | Identified exit to Factory 11469 | -5/Factory | Identified exit to Upper Caves 11470 | -5/Factory | Loaded intel: 86 trap records 11471 | -5/Factory | Loaded intel: 28 terminal locations 11510 | -5/Factory | Discovered new exit (range 20) 11730 | -5/Factory | Repaired Impulse Thruster Array? 11903 | -5/Factory | Repaired Cld. VTOL Module 11955 | -5/Factory | Loaded intel: 8 recycling unit locations 12193 | -5/Factory | Repaired Impulse Thruster Array 12267 | -5/Factory | Found Prototype Launcher 12267 | -5/Factory | Identified Mni. Smartbomb Launcher 12702 | -5/Factory | Discovered new exit (range 21) 12856 | -5/Factory | Discovered exit to Factory (range 21) 12884 | -5/Factory | Discovered exit to Upper Caves (range 16) 13170 | -5/Factory | Fabricated Cld. VTOL Module (x1) 13250 | -5/Factory | Discovered exit to Factory (range 7) 13472 | -5/Factory | Sucked down chute 13472 | -5/Factory | Entered Waste 13475 | -5/Waste | Spotted C-40 Crusher 13481 | -5/Waste | Spotted C-40 Crusher 13491 | -5/Waste | Spotted C-40 Crusher 13491 | -5/Waste | Spotted C-40 Crusher 13491 | -5/Waste | Spotted C-40 Crusher 13491 | -5/Waste | Spotted C-40 Crusher 13492 | -5/Waste | Discovered new exit (range 13) 13497 | -5/Waste | Warlord forces began an assault 13513 | -5/Waste | Allies destroyed C-40 Crusher 13523 | -5/Waste | Allies destroyed C-40 Crusher 13526 | -5/Waste | Allies destroyed C-40 Crusher 13527 | -5/Waste | Allies destroyed C-40 Crusher 13541 | -5/Waste | Allies destroyed C-40 Crusher 13555 | -5/Waste | Allies destroyed C-40 Crusher 13586 | -5/Waste | Lost 10 allies 13657 | -5/Waste | Identified exit to Factory 13685 | -5/Waste | Entered Factory 13685 | -5/Factory | Accompanied by 8 allies 13799 | -5/Factory | Targeted by mysterious "MATRIX" hacker. 13799 | -5/Factory | Loaded intel: 8 recycling unit locations 13884 | -5/Factory | Lost 3 allies 13932 | -5/Factory | Discovered new exit (range 14) 14009 | -5/Factory | Discovered exit to Upper Caves (range 5) 14038 | -5/Factory | Repaired Cld. VTOL Module 14090 | -5/Factory | Identified exit to Extension 14193 | -5/Factory | Entered Extension 14276 | -5/Extension | Rescued a captive Derelict 14278 | -5/Extension | Rescued a captive Derelict 14304 | -5/Extension | Rescued a captive Derelict 14304 | -5/Extension | Rescued a captive Derelict 14363 | -5/Extension | Lost 4 allies 14378 | -5/Extension | Rescued a captive Derelict 14380 | -5/Extension | Rescued a captive Derelict 14521 | -5/Extension | Lost 5 allies 14793 | -5/Extension | First assault squad dispatched 14809 | -5/Extension | Rescued a captive Derelict 14809 | -5/Extension | Rescued a captive Derelict 15073 | -5/Extension | Spotted B-75 Beast 15096 | -5/Extension | Spotted B-75 Beast 15114 | -5/Extension | Revealed the true nature of CR-A16's Pointy Stick 15118 | -5/Extension | Destroyed B-75 Beast 15121 | -5/Extension | Destroyed B-75 Beast 15147 | -5/Extension | Lost 3 allies 15201 | -5/Extension | Repaired Impulse Thruster Array 15237 | -5/Extension | Repaired Cld. VTOL Module 15249 | -5/Extension | Rescued a captive Derelict 15325 | -5/Extension | Lost 3 allies 15424 | -5/Extension | Rescued A7 15487 | -5/Extension | Discovered exit to Factory (range 10) 15487 | -5/Extension | Discovered new exit (range 6) 15491 | -5/Extension | Identified exit to Cetus 15550 | -5/Extension | Entered Cetus 15550 | -5/Cetus | Accompanied by 8 allies (A7) 15553 | -5/Cetus | Spotted Cetus Guard 15553 | -5/Cetus | Spotted Cetus Guard 15555 | -5/Cetus | Acquired a Cetus Manufacturing Module code from A7 15555 | -5/Cetus | Spotted Cetus Guard 15560 | -5/Cetus | Spotted Cetus Guard 15573 | -5/Cetus | Allies destroyed Cetus Guard 15584 | -5/Cetus | Allies destroyed Cetus Guard 15590 | -5/Cetus | Allies destroyed Cetus Guard 15600 | -5/Cetus | Allies destroyed Cetus Guard 15612 | -5/Cetus | Lost 7 allies 15649 | -5/Cetus | Started Cetus Manufacturing Module 15674 | -5/Cetus | Manufactured an Enhanced Grunt 15699 | -5/Cetus | Manufactured an Enhanced Grunt 15710 | -5/Cetus | Discovered new exit (range 21) 15724 | -5/Cetus | Manufactured an Enhanced Grunt 15733 | -5/Cetus | Spotted Cetus Guard 15733 | -5/Cetus | Spotted Cetus Guard 15733 | -5/Cetus | Spotted Cetus Guard 15733 | -5/Cetus | Spotted Cetus Guard 15744 | -5/Cetus | Identified exit to Archives 15749 | -5/Cetus | Manufactured an Enhanced Grunt 15774 | -5/Cetus | Manufactured an Enhanced Grunt 15812 | -5/Cetus | Found Prototype Device 15812 | -5/Cetus | Identified Exp. Thermal Shield 15817 | -5/Cetus | Discovered exit to Factory (range 22) 15821 | -5/Cetus | Met Revision 17 15863 | -5/Cetus | Entered Archives 15863 | -5/Archives | Accompanied by 5 allies (A7) 16077 | -5/Archives | Unable to access archive contents 16078 | -5/Archives | Discovered new exit (range 21) 16081 | -5/Archives | Unable to access archive contents 16082 | -5/Archives | Discovered new exit (range 22) 16083 | -5/Archives | Discovered exit to Factory (range 22) 16085 | -5/Archives | Unable to access archive contents 16119 | -5/Archives | Identified exit to Hub_04(d) 16500 | -5/Archives | Entered Hub_04(d) 16500 | -5/Hub_04(d) | Accompanied by 4 allies 16587 | -5/Hub_04(d) | Network Hub disabled 16613 | -5/Hub_04(d) | Network Hub disabled 16620 | -5/Hub_04(d) | Spotted Lightning 16620 | -5/Hub_04(d) | Spotted Lightning 16620 | -5/Hub_04(d) | Spotted Lightning 16649 | -5/Hub_04(d) | Entered Factory 16649 | -4/Factory | Evolved 2 slots: Propulsion x1, Weapon x1 16771 | -4/Factory | Discovered new exit (range 13) 16774 | -4/Factory | Identified exit to Upper Caves 16990 | -4/Factory | Loaded intel: 8 recycling unit locations 17065 | -4/Factory | Discovered exit to Upper Caves (range 12) 17114 | -4/Factory | Found Prototype Device 17114 | -4/Factory | Identified Exp. ECM Suite 17235 | -4/Factory | Manually triggered Chute Trap 17235 | -4/Factory | Sucked down chute 17235 | -4/Factory | Entered Waste 17243 | -4/Waste | Spotted C-40 Crusher 17248 | -4/Waste | Spotted C-40 Crusher 17249 | -4/Waste | Spotted C-40 Crusher 17250 | -4/Waste | Spotted C-40 Crusher 17254 | -4/Waste | Discovered new exit (range 13) 17254 | -4/Waste | Spotted C-40 Crusher 17268 | -4/Waste | Spotted C-40 Crusher 17284 | -4/Waste | Warlord forces began an assault 17294 | -4/Waste | Allies destroyed C-40 Crusher 17297 | -4/Waste | Allies destroyed C-40 Crusher 17298 | -4/Waste | Allies destroyed C-40 Crusher 17304 | -4/Waste | Allies destroyed C-40 Crusher 17308 | -4/Waste | Allies destroyed C-40 Crusher 17369 | -4/Waste | Allies destroyed C-40 Crusher 17389 | -4/Waste | Identified exit to Factory 17403 | -4/Waste | Build established: Hacker-Ninja 17430 | -4/Waste | Entered Factory 17430 | -4/Factory | Accompanied by 13 allies 17474 | -4/Factory | Local machine network offline 17593 | -4/Factory | Spotted B-86 Titan 17621 | -4/Factory | Lost 5 allies 17623 | -4/Factory | Discovered exit to Upper Caves (range 4) 17636 | -4/Factory | Entered Upper Caves 17645 | -4/Upper Caves | Encountered a Warlord checkpoint 17662 | -4/Upper Caves | Learned Research terminal intel 17802 | -4/Upper Caves | Build established: Hacker-Scout 17821 | -4/Upper Caves | Discovered new exit (range 17) 17862 | -4/Upper Caves | Identified exit to Upper Caves 17862 | -4/Upper Caves | Entered another Upper Caves area 17874 | -4/Upper Caves | Discovered new exit (range 14) 18040 | -4/Upper Caves | Discovered new exit (range 10) 18047 | -4/Upper Caves | Spotted B-86 Titan 18090 | -4/Upper Caves | Attracted the attention of an 0b10 base 18115 | -4/Upper Caves | Identified exit to Warlord 18120 | -4/Upper Caves | Entered Warlord 18133 | -4/Warlord | System corruption cleaned by Quarantine Array 18221 | -4/Warlord | Found Prototype Device 18221 | -4/Warlord | Identified Exp. Phase Shifter 18224 | -4/Warlord | Found Prototype Hackware 18224 | -4/Warlord | Identified System Mapper 18227 | -4/Warlord | Found Prototype Processor 18227 | -4/Warlord | Identified Exp. Core Analyzer 18277 | -4/Warlord | Found Prototype Device 18277 | -4/Warlord | Identified Minesniffer Drone Bay 18285 | -4/Warlord | Warlord's base attacked by MAIN.C 18301 | -4/Warlord | Rebuked by Warlord 18342 | -4/Warlord | Opened side exit 18376 | -4/Warlord | Build established: Hacker-Sprinter 18380 | -4/Warlord | Discovered new exit (range 9) 18382 | -4/Warlord | Identified exit to Proximity Caves 18384 | -4/Warlord | Entered Proximity Caves 18440 | -3/Proximity Caves | Discovered new exit (range 8) 18448 | -3/Proximity Caves | Identified exit to Research 18455 | -3/Proximity Caves | Entered Research 18455 | -3/Research | Evolved 2 slots: Power x1, Weapon x1 18457 | -3/Research | Loaded intel: 100 trap records 18458 | -3/Research | Loaded intel: 24 terminal locations 18459 | -3/Research | Identified exit to Research 18489 | -3/Research | Discovered exit to Research (range 21) 18540 | -3/Research | Found Mni. Smartbomb Launcher 18655 | -3/Research | Revision forces began assault on 0b10 18670 | -3/Research | Spotted B-86 Titan 18729 | -3/Research | Identified exit to Quarantine 18829 | -3/Research | Loaded intel: 5 recycling unit locations 19058 | -3/Research | Spotted B-86 Titan 19103 | -3/Research | Entered Quarantine 19116 | -3/Quarantine | Found Alien Slashing Weapon 19116 | -3/Quarantine | Identified Sigix Broadsword 19134 | -3/Quarantine | Found Alien Artifact 19134 | -3/Quarantine | Identified Phase Armor 19155 | -3/Quarantine | Found Alien Energy Cannon 19155 | -3/Quarantine | Identified Core Cannon 19361 | -3/Quarantine | Discovered exit to Research (range 12) 19583 | -3/Quarantine | Found Exp. Signal Interpreter 19603 | -3/Quarantine | First assault squad dispatched 19605 | -3/Quarantine | Found Alien Artifact 19605 | -3/Quarantine | Identified Phase Redirector 19646 | -3/Quarantine | Build established: Hacker-Scout 19664 | -3/Quarantine | Found Alien Artifact 19664 | -3/Quarantine | Identified Subatomic Replicator 19754 | -3/Quarantine | Found Alien Artifact 19775 | -3/Quarantine | Identified Dimensional Node Initializer 19785 | -3/Quarantine | Found Alien Artifact 19792 | -3/Quarantine | Identified Transdimensional Reconstructor 19799 | -3/Quarantine | Found Alien Artifact 19801 | -3/Quarantine | Found Alien Artifact 19801 | -3/Quarantine | Identified Hpw. Transdimensional Reconstructor (x2) 19801 | -3/Quarantine | Warped through subspace 19826 | -3/Quarantine | Used Subatomic Replicator to create Alien Artifact 19832 | -3/Quarantine | Found Transdimensional Reconstructor 19832 | -3/Quarantine | Warped through subspace 19851 | -3/Quarantine | Identified Supercharged TR 19876 | -3/Quarantine | Spotted Fortress 19898 | -3/Quarantine | Discovered new exit (range 6) 19898 | -3/Quarantine | Discovered new exit (range 6) 19899 | -3/Quarantine | Identified exit to Protoforge 19900 | -3/Quarantine | Identified exit to Section 7 19902 | -3/Quarantine | Entered Protoforge 19991 | -3/Protoforge | Spotted Hotshot 19992 | -3/Protoforge | Spotted Hotshot 19993 | -3/Protoforge | Superfortress began startup sequence 20008 | -3/Protoforge | Discovered exit to Research (range 21) 20044 | -3/Protoforge | Local machine network offline 20076 | -3/Protoforge | Spotted Hotshot 20077 | -3/Protoforge | Spotted Hotshot 20152 | -3/Protoforge | Search patrols dispatched 20152 | -3/Protoforge | Spotted Hotshot 20152 | -3/Protoforge | Spotted Hotshot 20182 | -3/Protoforge | Spotted Hotshot 20210 | -3/Protoforge | Spotted AP7-3 20213 | -3/Protoforge | Spotted AP7-3 20224 | -3/Protoforge | Spotted SKR-2 20224 | -3/Protoforge | Spotted SKR-2 20224 | -3/Protoforge | Spotted SKR-2 20224 | -3/Protoforge | Spotted EXE-6 20225 | -3/Protoforge | Spotted EXE-6 20241 | -3/Protoforge | Spotted EXE-6 20242 | -3/Protoforge | Spotted EXE-6 20247 | -3/Protoforge | Warped through subspace 20284 | -3/Protoforge | Lost 4 parts (1p2n1w) 20319 | -3/Protoforge | Spotted Overlord 20324 | -3/Protoforge | Entered Research 20324 | -2/Research | Evolved 2 slots: Utility x1, Weapon x1 20355 | -2/Research | Scraphulk reinforcements arrived? 20372 | -2/Research | Identified exit to Access 20374 | -2/Research | Scrapoids reinforcements arrived? 20424 | -2/Research | Lost 5 allies 20483 | -2/Research | Found Scrap Suit 20643 | -2/Research | Found Prototype Hackware 20643 | -2/Research | Identified Exp. Hacking Suite 20741 | -2/Research | Spotted B-90 Cyclops 20757 | -2/Research | Found Exp. Terrain Scan Processor 20760 | -2/Research | Discovered new exit (range 21) 20775 | -2/Research | Identified exit to Testing 20872 | -2/Research | Entered Access 20872 | -1/Access | Evolved 2 slots: Utility x2 21087 | -1/Access | Scraphulk reinforcements arrived? 21122 | -1/Access | Search patrols dispatched 21134 | -1/Access | Found Exp. Hacking Suite 21142 | -1/Access | Identified exit to Command 21159 | -1/Access | Spotted 01A02-K 21252 | -1/Access | Warped through subspace 21278 | -1/Access | Scraphulk reinforcements arrived 21437 | -1/Access | Spotted B-99 Colossus 21447 | -1/Access | Initialized slip node 21448 | -1/Access | Core integrity fell below 50% 21468 | -1/Access | Core integrity fell below 20% 21484 | -1/Access | Destroyed by H-88 Terminator with Heavy Machine Gun Last Messages --------------- 21468_ Exp. Hacking Suite destroyed. 21477_ Triggered Blade Trap. 21477_ Massive razor-sharp blades shoot up from within the floor. 21477_ Exp. Hacking Suite severed. 21478_ Triggered Blade Trap. 21478_ Massive razor-sharp blades shoot up from within the floor. 21478_ Graphene Brace severed. 21480_ Triggered Blade Trap. 21480_ Massive razor-sharp blades shoot up from within the floor. 21480_ Exp. Terrain Scan Processor severed. 21480_ Exp. Signal Interpreter severed. 21483_ TF Node disabled. 21483_ Adv. Sensor Array tumbles out of TF Node. 21483_ Adv. Signal Interpreter tumbles out of TF Node. 21484_ Slug penetrates Wall. 21484_ Penetrated by Slug. Map ----- +----------------------------------------------------+ | ?????????????????????????????????????????????????? | | ?????????????????????????????????????????????????? | | ?????????????????????????????????????????????????? | | ?????????????????????????????????????????????????? | | ?????????????????????????????????????????????????? | | ??????????????????????????????????????!??????????? | | ?????????????????????????????????????????????????? | | ?????????????????????????????????????????????????" | | ?????????????????????????????????????????????????" | | ?????????????????????????????????????????????????" | | ??????????????????????? = ??????????????????????" | | ??????????????????????? ###???????????????????" | | ??????????????????????? #???????????????????? | | ??????????????????????? #???????????????????? | | ??????????????????????? #???????????????????? | | ????????????????????!?? #???????????????????? | | ???????????????????????#h #???????????????????? | | ???????????????????????# #???????????????????? | | ???????????????????????# #???????????????????? | | ???????????????????????# h #?????????????? #### | | ???????????????????????# #????????????? | | ???????????????????????# #????????????? | | ???????????????????????+ #???????????? | | ???????????????????????# #????????????!!! | | ???????????????????????# #????????????!!! | | ????????????####??????## @ ##???????????!!! | | ????????????# ????# #??????????? | | ????????????# ??# #######+##??? | | ????????????# # !! ??? | | ????????????# + ??? | | ????????????# # ???? #### | | ????????????# ??# #######/#?????????#" | | ????????????# ????# #??????????????????" | | ????????????# ??????### ###??????????????????? | | ????????????##??????????# #????????????????????? | | ????????????????????????# s#???!????????????????? | | ????????????????????????# s#????????????????????? | | ????????????????????????# s######???????????????? | | ??????????????????# ### ps ### ###???????? | | ??????????????????# " ???????? | | ??????????????????# ### ### #?????????? | | ??????????????????#?????###### #???########????? | | ????????????????????????????## ##??# #????? | | ????????????????????????????# #??# #????? | | ??????????????????????????### #### #????? | | ??????????????????????????+ " / #????? | | ??????????????????????????### #### #????? | | ????????????????????????????# #??# ! #?#### | | ????????????????????????????### ###??#####+#### | | ??????????????????????????????# #???????# | +----------------------------------------------------+ Best States ------------- Heat Dissipation 62 Energy Generation 35 Energy Capacity 350 Matter Stores 300 Matter Capacity 300 Sight Range 22 Robot Scan Range 20 Terrain Scan Range 14 Terrain Scan Density 1010 Jamming Range 12 Cloak Strength 3 Corruption Containment 8 Armor Coverage 300 Resistance: KI 25 Resistance: TH 30 Point Defense Rating 240 Phase Shifting 10 Evasion (%) 75 Core Analysis 8 Recoil Reduction 2 Offensive Hacking 52 Defensive Hacking 35 Authchip Count 1 Item Schematics ----------------- Mic. Nuclear Core | -8/Recycling | Hacked Flight Unit | -8/Recycling | Hacked Imp. VTOL Module | -6/Factory | Hacked Imp. Hacking Suite | -6/Factory | Hacked Hacking Suite | -6/Factory | Hacked Adv. Hacking Suite | -6/Zion | Archive Adv. Terrain Scanner | -6/Zion | Archive Falx | -6/Zion | Archive Imp. Remote Datajack | -6/Zion | Archive Adv. Recoil Stabilizer | -6/Zion | Archive Adv. Signal Interpreter | -6/Zion | Archive Myomer Leg | -6/Zion | Archive Lance | -6/Zion | Archive Drone Bay | -6/Zion | Archive Focal Shield | -6/Zion | Archive Imp. Launcher Guidance Computer | -6/Zion | Archive Hvy. Pick | -6/Zion | Archive Imp. Armor Integrity Analyzer | -6/Zion | Archive Cld. VTOL Module | -5/Factory | Scanalyzed Thunder Hammer | -3/Quarantine | Archive Hvy. Wave Gun | -3/Quarantine | Archive Gravity Neutralizer | -3/Quarantine | Archive Cld. Antigrav System | -3/Quarantine | Archive Robot Schematics ------------------ R-10 Processor | -6/Zion | Archive A-15 Conveyor | -6/Zion | Archive S-27 Virus | -6/Zion | Archive X-77 Beamer | -6/Zion | Archive P-70 Sage | -3/Quarantine | Archive T-07 Excavator | -3/Quarantine | Archive Fabricated ------------ Imp. VTOL Module | x1 | -6/Factory Imp. Hacking Suite | x1 | -6/Factory | Authchip Cld. VTOL Module | x1 | -5/Factory | Authchip Repaired ---------- VTOL Module | 52% | -6/Factory Impulse Thruster Array | 68% | -6/Factory | Broken Impulse Thruster Array | 12% | -5/Factory Cld. VTOL Module | 3% | -5/Factory Impulse Thruster Array | 64% | -5/Factory Cld. VTOL Module | 43% | -5/Factory Impulse Thruster Array | 20% | -5/Extension Cld. VTOL Module | 25% | -5/Extension Studied --------- VTOL Module | -6/Factory | Hacked Flight Unit | -6/Factory | Hacked Arm. Huge Wheel | -6/Factory | Hacked Nuclear Pulse Thruster | -6/Factory | Hacked Nuclear Pulse Array | -5/Factory | Hacked Power Sword | -5/Factory | Hacked Adv. Plasma Cannon | -5/Factory | Hacked Mic. Antimatter Reactor | -3/Research | Hacked Adv. Surge Thruster | -3/Research | Hacked Impulse Thruster Array | -3/Research | Hacked Lgt. Antimatter Reactor | -2/Research | Hacked Alien Tech Used ----------------- Sigix Broadsword Phase Armor Core Cannon Phase Redirector Subatomic Replicator High-powered Transdimensional Reconstructor Transdimensional Reconstructor Supercharged TR Dimensional Node Initializer Achievements -------------- Bending The Rules Collateral Damage I Have Friends Everywhere Network Effect The Robot, The Myth, The Legend Tune-up UFD MVP Challenges ------------ None Game ------ Seed ElectronSensorTerrabomb Manual? 0 Play Time 08:07:52 Cumulative 168.9 hours Start 2026.02.17 @ 20:38:10 End 2026.02.18 @ 05:17:07 Sessions 2 Manual Loads 0 Difficulty Rogue Special Mode None Game No. 128 Rogue 128 Adventurer 0 Explorer 0 Win Type - Total 2 Types 2/0/0/0/0/0/0/0/0/0 Lore% 70 Gallery% 64 Achievement% 48 Wizard Run 0 Options --------- Layout 1 ASCII 0 Keyboard 0 Movement Numpad Keybinds 0 Fullscreen 1 Font 18/SmallcapsGlow Map View 50x40 Zoom Use 0% Tactical HUD 1 Map Filters NONE Filters NONE Steam 1 RUN: c7c08901-a132-427c-a1f0-c9d56e9198a0